Workbook

Sheet ТИТУЛ
A1: Муниципальное автономное дошкольное образовательное учреждение
A2: детский сад комбинированного вида №24 "Березка" г. Белебея
A3: муниципального района Белебеевский район Республики Башкортостан
A7: Диагностика индивидуального развития детей 5-6 лет
A9: 20__-20___ учебный год
A11: В соответствии с Федеральной образовательной
A12: программой дошкольного образования
A13: Приказ Министерства просвещения РФ от 24.11.2022г.
A17: Педагоги:
A19: Воспитатель:
A20: Воспитатель:
A21: Учитель-логопед:
A22: Муз.руководитель
B43: Планируемые образовательные результаты к 6 годам:
A45: ребенок демонстрирует ярко выраженную потребность в двигательной активности, проявляет интерес к новым и знакомым физическим упражнениям, пешим прогулкам, показывает избирательность и инициативу при выполнении упражнений, имеет представления о некоторых видах спорта, туризме, как форме активного отдыха;
A47: ребенок проявляет во время занятий физической деятельностью выносливость, быстроту, силу, координацию, гибкость, уверенно, в заданном темпе и ритме, выразительно выполняет упражнения, способен творчески составить несложные комбинации из знакомых упражнений;
A49: ребенок проявляет необходимый самоконтроль и самооценку, способен самостоятельно привлечь внимание других детей и организовать знакомую подвижную игру;
A51: ребенок владеет основными способами укрепления здоровья, правилами безопасного поведения в двигательной деятельности, мотивирован на сбережение и укрепление собственного здоровья и здоровья окружающих его людей;
A53: ребенок настроен положительно по отношению к окружающим, охотно вступает в общение с близкими взрослыми и сверстниками, проявляет сдержанность по отношению к незнакомым людям, при общении со взрослыми и сверстниками ориентируется на общепринятые нормы и правила культуры поведения, проявляет любовь к родителям, уважение к воспитателям, интересуется жизнью семьи и детского сада;
A55: ребенок владеет приемами объединения сверстников на совместную деятельность: определять общий замысел, распределять роли, согласовывать действия, оценивать полученный результат и характер взаимоотношений, регулирует свою активность в деятельности, умеет соблюдать очередность и учитывать права других людей, проявляет инициативу в общении и деятельности, задает вопросы различной направленности, слушает и понимает взрослого, действует по правилу или образцу в разных видах деятельности, способен к произвольным действиям;
A57: ребенок проявляет доброжелательность в общении со сверстниками, умеет принимать общий замысел, договариваться, вносить предложения, соблюдает общие правила в игре и совместной деятельности, способен различать разные эмоциональные состояния взрослых и сверстников, учитывает их в своем поведении, откликается на просьбу помочь, в оценке поступков опирается на нравственные представления;
A59: ребенок проявляет активность в стремлении к познанию разных видов труда и профессий, бережно относится к предметному миру как результату труда взрослых, стремится участвовать в труде взрослых, самостоятелен, инициативен в самообслуживании, участвует со сверстниками в разных видах повседневного и ручного труда;
A61: ребенок испытывает интерес к событиям, находящимся за рамками личного опыта, фантазирует, сочиняет разные истории, предлагает пути решения проблем, имеет представления о социальном, предметном и природном мире;
A63: ребенок владеет представлениями о безопасном поведении, соблюдает правила безопасного поведения в разных видах деятельности, демонстрирует умения правильно и безопасно пользоваться под присмотром взрослого бытовыми предметами и приборами, безопасного общения с незнакомыми животными, владеет основными правилами безопасного поведения на улице;
A65: ребенок проявляет познавательную активность в общении со взрослыми и сверстниками, делится знаниями, задает вопросы; проявляет инициативу и самостоятельность в процессе придумывания загадок, сказок, рассказов, владеет первичными приемами аргументации и доказательства, демонстрирует богатый словарный запас, безошибочно пользуется обобщающими словами и понятиями, самостоятельно пересказывает рассказы и сказки, проявляет избирательное отношение к произведениям определенной тематики и жанра.

Sheet Оглавление
B1: ОГЛАВЛЕНИЕ:
C2: Кликнув мышкой по соответствующему названию, вы автоматически перейдете в нужный раздел.
A4: наименование вкладки | B4: ТИТУЛЬНЫЙ ЛИСТ
A5: Образовательная область "Социально-коммуникативное развитие"
A6: СК-1 | B6: НАПРАВЛЕНИЕ 1. СОЦИАЛЬНЫЕ ОТНОШЕНИЯ.
B8: НАПРАВЛЕНИЕ 2. ФОРМИРОВАНИЕ ОСНОВ ГРАЖДАНСТВЕННОСТИ И ПАРТИОТИЗМА.
A10: СК-2 | B10: НАПРАВЛЕНИЕ 3. ТРУДОВОЕ ВОСПИТАНИЕ
A11: СК-3 | B11: НАПРАВЛЕНИЕ 4. ФОРМИРОВАНИЕ БЕЗОПАСНОГО ПОВЕДЕНИЯ
A12: ИТОГ СК | B12: Обобщение результатов педагогической диагностики по направлениям ОО "Социально-коммуникативное развитие"
A13: Образовательная область "Познавательное развитие"
A14: ПР-1 | B14: НАПРАВЛЕНИЕ 1. СЕНСОРНЫЕ ЭТАЛОНЫ И ПОЗНАВАТЕЛЬНЫЕ ДЕЙСТВИЯ. ОКРУЖАЮЩИЙ МИР. ПРИРОДА.
A15: ПР-2 | B15: НАПРАВЛЕНИЕ 2. МАТЕМАТИЧЕСКИЕ ПРЕДСТАВЛЕНИЯ
A16: ИТОГ -ПР | B16: Обобщение результатов педагогической диагностики по направлениям ОО "Познавательное развитие"
A17: Образовательная область "Речевое развитие"
A18: РР-1 | B18: НАПРАВЛЕНИЕ I. ФОРМИРОВАНИЕ СЛОВАРЯ
A19: РР-2 | B19: НАПРАВЛЕНИЕ 2. ЗВУКОВАЯ КУЛЬТУРА РЕЧИ.
A20: РР-3 | B20: НАПРАВЛЕНИЕ 3. ГРАММАТИЧЕСКИЙ СТРОЙ РЕЧИ.
A21: РР-4 | B21: НАПРАВЛЕНИЕ 4. СВЯЗНАЯ РЕЧЬ. ИНТЕРЕС К ХУДОЖЕСТВЕННОЙ ЛИТЕРАТУРЕ
A22: РР-5 | B22: НАПРАВЛЕНИЕ 5. ПОДГОТОВКА К ОБУЧЕНИЮ ГРАМОТЕ
A23: ИТОГ РР | B23: Обобщение результатов педагогической диагностики по направлениям ОО "Речевое развитие"
A24: Образовательная область "Художественно-эстетическое развитие"
A25: ХЭ-1 | B25: НАПРАВЛЕНИЕ I. ПРИОБЩЕНИЕ К ИСКУССТВУ
A26: ХЭ-2 | B26: НАПРАВЛЕНИЕ 2. КОНСТРУКТИВНАЯ ДЕЯТЕЛЬНОСТЬ
A27: ХЭ-3 | B27: НАПРАВЛЕНИЕ 3. ИЗОБРАЗИТЕЛЬНАЯ ДЕЯТЕЛЬНОСТЬ
A28: ХЭ-4 | B28: НАПРАВЛЕНИЕ 4. МУЗЫКАЛЬНАЯ ДЕЯТЕЛЬНОСТЬ
A29: ХЭ-5 | B29: НАПРАВЛЕНИЕ 5. ТЕАТРАЛИЗОВАННАЯ И КУЛЬТУРНО-ДОСУГОВАЯ ДЕЯТЕЛЬНОСТЬ
A30: ИТОГ ХЭ | B30: Обобщение результатов педагогической диагностики по направлениям ОО "Художественно-эстетическое развитие"
A31: Образовательная область "Физическое развитие"
A32: ФР-1 | B32: НАПРАВЛЕНИЕ I. ОСНОВНАЯ ГИМНАСТИКА. ПОДВИЖНЫЕ И СПОРТИВНЫЕ ИГРЫ. СПОРТИВНЫЕ УПРАЖНЕНИЯ
A33: ФР-2 | B33: НАПРАВЛЕНИЕ 2. ФОРМИРОВАНИЕ ОСНОВ ЗДОРОВОГО ОБРАЗА ЖИЗНИ. АКТИВНЫЙ ОТДЫХ
A34: ИТОГ ФР | B34: Обобщение результатов педагогической диагностики по направлениям ОО «Физическое развитие»
A36: ОБЩИЙ ИТОГ | B36: Обобщение результатов педагогической диагностики по всем образовательным областям

Sheet СК-1
B1: Образовательная область «Социально-коммуникативное развитие»
B3: НАПРАВЛЕНИЕ 1,2. СОЦИАЛЬНЫЕ ОТНОШЕНИЯ. ФОРМИРОВАНИЕ ОСНОВ ГРАЖДАНСТВЕННОСТИ И ПАРТИОТИЗМА. | Z3: ОГЛАВЛЕНИЕ
B5: №п/п | C5: ФИ ребенка | D5: Понимает эмоциональное состояние, умеет выражать сочувствие и оказывать помощь, заботу в социально приемлимом виде | F5: Понимает различия в правилах поведения мальчиков и девочек, демонстрирует правильные образцы поведения | H5: Вречи использует вежливые слова (доброе утро, добрый вечер, хорошего дня, будьте здоровы, пожалуйста, извините, спасибо) | J5: Узнает и называет некоторые достопримечательности города | L5: Узнает и называет государственные символы (герб, флаг) и столицу РФ по фото (Кремль, Красная площадь) | N5: Соблюдает правила совместных со сверстниками игр (сюжетно-ролевые, эстафеты, настольно-печатные) | P5: Предотвращает и самостоятельно преодолевает конфликтные ситуации, уступает | R5: Знаком с правилами поведения в общественных местах, об обязанностях в группе, понимает последствия несоблюдения принятых правил | T5: Правильно оценивает свои поступки и поступки других | V5: Бережное отношение к пространству и оборудованию ДОО | X5: Самообслуживание полностью сформировано | Z5: Хочет участвовать в хозяйственно­бытовой деятельности, наводить порядок в группе и на участке, выполнять обязанности дежурного но столовой, на заня1иях, в уголке природы | AB5: Выполняет трудовые поручения, выбирает необходимые орудия груда и отслеживает результат (выполнил / не выполнил) | AD5: Соблюдает правила этикета за столом, при встрече и прощании, при просьбе | AF5: Проявляет интерес к ручному груду, планирует свою деятельность, адекватно оценивает результат | AH5: Проявляет социальную активность в значимых событиях, связанных с событиями военных лет и подвигами горожан | AJ5: среднее значение
D7: н.г. | E7: к.г. | F7: н.г. | G7: к.г. | H7: н.г. | I7: к.г. | J7: н.г. | K7: к.г. | L7: н.г. | M7: к.г. | N7: н.г. | O7: к.г. | P7: н.г. | Q7: к.г. | R7: н.г. | S7: к.г. | T7: н.г. | U7: к.г. | V7: н.г. | W7: к.г. | X7: н.г. | Y7: к.г. | Z7: н.г. | AA7: к.г. | AB7: н.г. | AC7: к.г. | AD7: н.г. | AE7: к.г. | AF7: н.г. | AG7: к.г. | AH7: н.г. | AI7: к.г. | AJ7: н.г. | AK7: к.г.
B8: 1 | C8: Иванов | D8: 2 | E8: 3 | F8: 2 | G8: 3 | H8: 2 | I8: 3 | J8: 2 | K8: 3 | L8: 3 | M8: 3 | N8: 1 | O8: 2 | P8: 2 | Q8: 3 | R8: 2 | S8: 3 | T8: 2 | U8: 3 | V8: 4 | W8: 5 | X8: 3 | Y8: 4 | Z8: 3 | AA8: 4 | AB8: 2 | AC8: 3 | AD8: 3 | AE8: 4 | AF8: 2 | AG8: 3 | AH8: 2 | AI8: 3 | AJ8: =(D8+F8+H8+J8+L8+N8+R8+T8+X8+Z8+AB8+AD8+AF8+P8+V8+AH8)/16 -> 2.31 | AK8: =(E8+G8+I8+K8+M8+O8+S8+U8+Y8+AA8+AC8+AE8+AG8+Q8+W8+AI8)/16 -> 3.25
B9: 2 | C9: Петров | AJ9: =(D9+F9+H9+J9+L9+N9+R9+T9+X9+Z9+AB9+AD9+AF9+P9+V9+AH9)/16 -> 0.00 | AK9: =(E9+G9+I9+K9+M9+O9+S9+U9+Y9+AA9+AC9+AE9+AG9+Q9+W9+AI9)/16 -> 0.00
B10: 3 | C10: Сидоров | AJ10: 0.00 | AK10: 0.00
B11: 4 | AJ11: 0.00 | AK11: 0.00
B12: 5 | AJ12: 0.00 | AK12: 0.00
B13: 6 | AJ13: 0.00 | AK13: 0.00
B14: 7 | AJ14: 0.00 | AK14: 0.00
B15: 8 | AJ15: 0.00 | AK15: 0.00
B16: 9 | AJ16: 0.00 | AK16: 0.00
B17: 10 | AJ17: 0.00 | AK17: 0.00
B18: 11 | AJ18: 0.00 | AK18: 0.00
B19: 12 | AJ19: 0.00 | AK19: 0.00
B20: 13 | AJ20: 0.00 | AK20: 0.00
B21: 14 | AJ21: 0.00 | AK21: 0.00
B22: 15 | AJ22: 0.00 | AK22: 0.00
B23: 16 | AJ23: 0.00 | AK23: 0.00
B24: 17 | AJ24: 0.00 | AK24: 0.00
B25: 18 | AJ25: 0.00 | AK25: 0.00
B26: 19 | AJ26: 0.00 | AK26: 0.00
B27: 20 | AJ27: 0.00 | AK27: 0.00
B28: 21 | AJ28: 0.00 | AK28: 0.00
B29: 22 | AJ29: 0.00 | AK29: 0.00
B30: 23 | AJ30: 0.00 | AK30: 0.00
B31: 24 | AJ31: 0.00 | AK31: 0.00
C32: среднее значение: | D32: =(D8+D9+D10+D11+D12+D13+D14+D15+D16+D17+D18+D19+D20+D21+D22+D23+D24+D25+D26+D27+D28+D29+D30+D31)/COUNTA($C$8:$C$31) -> 0.67 | E32: =(E8+E9+E10+E11+E12+E13+E14+E15+E16+E17+E18+E19+E20+E21+E22+E23+E24+E25+E26+E27+E28+E29+E30+E31)/COUNTA($C$8:$C$31) -> 1.00 | F32: 0.67 | G32: 1.00 | H32: 0.67 | I32: 1.00 | J32: 0.67 | K32: 1.00 | L32: 1.00 | M32: 1.00 | N32: 0.33 | O32: 0.67 | P32: 0.67 | Q32: 1.00 | R32: 0.67 | S32: 1.00 | T32: 0.67 | U32: 1.00 | V32: 1.33 | W32: 1.67 | X32: 1.00 | Y32: 1.33 | Z32: 1.00 | AA32: 1.33 | AB32: 0.67 | AC32: 1.00 | AD32: 1.00 | AE32: 1.33 | AF32: 0.67 | AG32: 1.00 | AH32: 0.67 | AI32: 1.00 | AJ32: =(D32+F32+H32+J32+L32+N32+R32+T32+X32+Z32+AB32+AD32+AF32+P32+V32+AH32)/16 -> 0.77 | AK32: =(E32+G32+I32+K32+M32+O32+S32+U32+Y32+AA32+AC32+AE32+AG32+Q32+W32+AI32)/16 -> 1.08
C36: начало года
D37: всего | E37: норма | F37: ниже нормы | G37: низкий
C38: количество детей | D38: =COUNTA(C8:C31) -> 3 | E38: =COUNTIF(AJ8:AJ31,">=3,8") -> 0 | F38: =COUNTIFS(AJ8:AJ31,"<3,7",AJ8:AJ31,">=2,3") -> 1 | G38: =COUNTIFS(AJ8:AJ31,"<2,2",AJ8:AJ31,">0") -> 0
C39: % | D39: 100 | E39: =E38*D39/D38 -> 0 | F39: =F38*D39/D38 -> 33.3 | G39: =G38*D39/D38 -> 0.0
C42: конец года
D43: всего | E43: норма | F43: ниже нормы | G43: низкий
C44: количество детей | D44: =COUNTA(C8:C31) -> 3 | E44: =COUNTIF(AK8:AK31,">=3,8") -> 0 | F44: =COUNTIFS(AK8:AK31,"<3,7",AK8:AK31,">=2,3") -> 1 | G44: =COUNTIFS(AK8:AK31,"<2,2",AK8:AK31,">0") -> 0
C45: % | D45: 100 | E45: =E44*D45/D44 -> 0.0 | F45: =F44*D45/D44 -> 33.3 | G45: =G44*D45/D44 -> 0.0

Sheet СК-2
B2: НАПРАВЛЕНИЕ 3. ТРУДОВОЕ ВОСПИТАНИЕ | N2: ОГЛАВЛЕНИЕ
B4: №п/п | C4: ФИ ребенка | D4: Имеет представление о разных видах труда (производственный, непроизводственный) | F4: Знает правила обращения с инструментами и бытовой техникой | H4: Стремится оказывать посильную помощь взрослым | J4: Переносит знания о труде взрослых в сюжетно-ролевые игры и в свой труд | L4: Знает о назначении рекламы | N4: Различает достоинство купюр, умеет считать в пределах 10 | P4: Имеет представления о доходе и его динамике, о расходах и их многообразии. | R4: среднее значение
D6: н.г. | E6: к.г. | F6: н.г. | G6: к.г. | H6: н.г. | I6: к.г. | J6: н.г. | K6: к.г. | L6: н.г. | M6: к.г. | N6: н.г. | O6: к.г. | P6: н.г. | Q6: к.г. | R6: н.г. | S6: к.г.
B7: 1 | C7: Иванов | D7: 2 | E7: 3 | F7: 2 | G7: 3 | H7: 2 | I7: 3 | J7: 2 | K7: 3 | L7: 3 | M7: 4 | N7: 3 | O7: 4 | P7: 3 | Q7: 4 | R7: =(D7+F7+H7+J7+L7+N7+P7)/7 -> 2.43 | S7: =(E7+G7+I7+K7+M7+O7+Q7)/7 -> 3.43
B8: 2 | C8: Петров | D8: 3 | E8: 4 | F8: 3 | G8: 4 | H8: 3 | I8: 4 | J8: 3 | K8: 4 | L8: 4 | M8: 5 | N8: 3 | O8: 4 | P8: 2 | Q8: 5 | R8: =(D8+F8+H8+J8+L8+N8+P8)/7 -> 3.00 | S8: =(E8+G8+I8+K8+M8+O8+Q8)/7 -> 4.29
B9: 3 | C9: Сидоров | D9: 4 | E9: 5 | F9: 3 | G9: 4 | H9: 3 | I9: 4 | J9: 3 | K9: 4 | L9: 3 | M9: 3 | N9: 3 | O9: 4 | P9: 2 | Q9: 3 | R9: 3.00 | S9: 3.86
B10: 4 | R10: 0.00 | S10: 0.00
B11: 5 | R11: 0.00 | S11: 0.00
B12: 6 | R12: 0.00 | S12: 0.00
B13: 7 | R13: 0.00 | S13: 0.00
B14: 8 | R14: 0.00 | S14: 0.00
B15: 9 | R15: 0.00 | S15: 0.00
B16: 10 | R16: 0.00 | S16: 0.00
B17: 11 | R17: 0.00 | S17: 0.00
B18: 12 | R18: 0.00 | S18: 0.00
B19: 13 | R19: 0.00 | S19: 0.00
B20: 14 | R20: 0.00 | S20: 0.00
B21: 15 | R21: 0.00 | S21: 0.00
B22: 16 | R22: 0.00 | S22: 0.00
B23: 17 | R23: 0.00 | S23: 0.00
B24: 18 | R24: 0.00 | S24: 0.00
B25: 19 | R25: 0.00 | S25: 0.00
B26: 20 | R26: 0.00 | S26: 0.00
B27: 21 | R27: 0.00 | S27: 0.00
B28: 22 | R28: 0.00 | S28: 0.00
B29: 23 | R29: 0.00 | S29: 0.00
B30: 24 | R30: 0.00 | S30: 0.00
C31: среднее значение: | D31: =(D7+D8+D9+D10+D11+D12+D13+D14+D15+D16+D17+D18+D19+D20+D21+D22+D23+D24+D25+D26+D27+D28+D29+D30)/COUNTA($C$7:$C$30) -> 3.00 | E31: =(E7+E8+E9+E10+E11+E12+E13+E14+E15+E16+E17+E18+E19+E20+E21+E22+E23+E24+E25+E26+E27+E28+E29+E30)/COUNTA($C$7:$C$30) -> 4.00 | F31: 2.67 | G31: 3.67 | H31: 2.67 | I31: 3.67 | J31: 2.67 | K31: 3.67 | L31: 3.33 | M31: 4.00 | N31: 3.00 | O31: 4.00 | P31: 2.33 | Q31: 4.00 | R31: =(D31+F31+H31+J31+L31+N31+P31)/7 -> 2.81 | S31: =(E31+G31+I31+K31+M31+O31+Q31)/7 -> 3.86
C33: начало года
D34: всего | E34: норма | F34: ниже нормы | G34: низкий
C35: количество детей | D35: =COUNTA(C7:C30) -> 3 | E35: =COUNTIF(R7:R30,">=3,8") -> 0 | F35: =COUNTIFS(R7:R30,"<3,7",R7:R30,">=2,3") -> 3 | G35: =COUNTIFS(R7:R30,"<2,2",R7:R30,">0") -> 0
C36: % | D36: 100 | E36: =E35*D36/D35 -> 0 | F36: =F35*D36/D35 -> 100.0 | G36: =G35*D36/D35 -> 0.0
C38: конец года
D39: всего | E39: норма | F39: ниже нормы | G39: низкий
C40: количество детей | D40: =COUNTA(C7:C30) -> 3 | E40: =COUNTIF(S7:S30,">=3,8") -> 2 | F40: =COUNTIFS(S7:S30,"<3,7",S7:S30,">=2,3") -> 1 | G40: =COUNTIFS(S7:S30,"<2,2",S7:S30,">0") -> 0
C41: % | D41: 100 | E41: =E40*D41/D40 -> 66.7 | F41: =F40*D41/D40 -> 33.3 | G41: =G40*D41/D40 -> 0.0

Sheet СК-3
B1: НАПРАВЛЕНИЕ 4. ФОРМИРОВАНИЕ БЕЗОПАСНОГО ПОВЕДЕНИЯ | Q1: ОГЛАВЛЕНИЕ
B3: №п/п | C3: ФИ ребенка | D3: Может опознать специальный транспорт и объяснить свой выбор | F3: Знает и называет некоторые дорожные знаки («Дети». «Пешеходный переход». «Подземный пешеходный переход». «Остановка обществен­ного транспорта». «Велосипедная дорожка») | H3: Правильно называет свой домашний адрес. Телефон родителя. Ф. И. О. родителя (родителей, законных представителей) | J3: Соблюдает правила безопасного поведения | R3: среднее значение
J4: в группе | L4: на прогулке | N4: с незнакомыми людьми | P4: с бродячими животными
D5: н.г. | E5: к.г. | F5: н.г. | G5: к.г. | H5: н.г. | I5: к.г. | J5: н.г. | K5: к.г. | L5: н.г. | M5: к.г. | N5: н.г. | O5: к.г. | P5: н.г. | Q5: к.г. | R5: н.г. | S5: к.г.
B6: 1 | C6: Иванов | R6: =(D6+F6+H6+J6+L6+N6+P6)/7 -> 0.00 | S6: =(E6+G6+I6+K6+M6+O6+Q6)/7 -> 0.00
B7: 2 | C7: Петров | R7: =(D7+F7+H7+J7+L7+N7+P7)/7 -> 0.00 | S7: =(E7+G7+I7+K7+M7+O7+Q7)/7 -> 0.00
B8: 3 | C8: Сидоров | R8: 0.00 | S8: 0.00
B9: 4 | R9: 0.00 | S9: 0.00
B10: 5 | R10: 0.00 | S10: 0.00
B11: 6 | R11: 0.00 | S11: 0.00
B12: 7 | R12: 0.00 | S12: 0.00
B13: 8 | R13: 0.00 | S13: 0.00
B14: 9 | R14: 0.00 | S14: 0.00
B15: 10 | R15: 0.00 | S15: 0.00
B16: 11 | R16: 0.00 | S16: 0.00
B17: 12 | R17: 0.00 | S17: 0.00
B18: 13 | R18: 0.00 | S18: 0.00
B19: 14 | R19: 0.00 | S19: 0.00
B20: 15 | R20: 0.00 | S20: 0.00
B21: 16 | R21: 0.00 | S21: 0.00
B22: 17 | R22: 0.00 | S22: 0.00
B23: 18 | R23: 0.00 | S23: 0.00
B24: 19 | R24: 0.00 | S24: 0.00
B25: 20 | R25: 0.00 | S25: 0.00
B26: 21 | R26: 0.00 | S26: 0.00
B27: 22 | R27: 0.00 | S27: 0.00
B28: 23 | R28: 0.00 | S28: 0.00
B29: 24 | R29: 0.00 | S29: 0.00
C30: среднее значение: | D30: =(D6+D7+D8+D9+D10+D11+D12+D13+D14+D15+D16+D17+D18+D19+D20+D21+D22+D23+D24+D25+D26+D27+D28+D29)/COUNTA($C$6:$C$29) -> 0.00 | E30: =(E6+E7+E8+E9+E10+E11+E12+E13+E14+E15+E16+E17+E18+E19+E20+E21+E22+E23+E24+E25+E26+E27+E28+E29)/COUNTA($C$6:$C$29) -> 0.00 | F30: 0.00 | G30: 0.00 | H30: 0.00 | I30: 0.00 | J30: 0.00 | K30: 0.00 | L30: 0.00 | M30: 0.00 | N30: 0.00 | O30: 0.00 | P30: 0.00 | Q30: 0.00 | R30: =(D30+F30+H30+J30+L30+N30+P30)/7 -> 0.00 | S30: =(E30+G30+I30+K30+M30+O30+Q30)/7 -> 0.00
C33: начало года
D34: всего | E34: норма | F34: ниже нормы | G34: низкий
C35: количество детей | D35: =COUNTA(C6:C29) -> 3 | E35: =COUNTIF(R6:R29,">=3,8") -> 0 | F35: =COUNTIFS(R6:R29,"<3,7",R6:R29,">=2,3") -> 0 | G35: =COUNTIFS(R6:R29,"<2,2",R6:R29,">0") -> 0
C36: % | D36: 100 | E36: =E35*D36/D35 -> 0 | F36: =F35*D36/D35 -> 0.0 | G36: =G35*D36/D35 -> 0.0
C39: конец года
D40: всего | E40: норма | F40: ниже нормы | G40: низкий
C41: количество детей | D41: =COUNTA(C5:C28) -> 3 | E41: =COUNTIF(S6:S29,">=3,8") -> 0 | F41: =COUNTIFS(S6:S29,"<3,7",S6:S29,">=2,3") -> 0 | G41: =COUNTIFS(S6:S29,"<2,2",S6:S29,">0") -> 0
C42: % | D42: 100 | E42: =E41*D42/D41 -> 0.0 | F42: =F41*D42/D41 -> 0.0 | G42: =G41*D42/D41 -> 0.0

Sheet ИТОГ СК
B1: Обобщение результатов педагогической диагностики по направлениям
B2: ОО «Социально-коммуникативное развитие»
G3: ОГЛАВЛЕНИЕ
C5: Социальные отношения. Формирование основ гражданственности и патриотизма | D5: Трудовое воспитание | E5: Формирование безопасного поведения | F5: Средний балл/уровень (итоговый)
C6: 1 | D6: 2 | E6: 3 | F6: 4
B7: начало | C7: ='СК-1'!AJ32 -> 0.77 | D7: ='СК-2'!R31 -> 2.81 | E7: ='СК-3'!$R$30 -> 0.00 | F7: =(C7+D7+E7)/3 -> 1.19
B8: конец | C8: ='СК-1'!AK32 -> 1.08 | D8: ='СК-2'!S31 -> 3.86 | E8: ='СК-3'!$S$30 -> 0.00 | F8: =(C8+D8+E8)/3 -> 1.65
B30: ВЫВОДЫ:
B31: Начало учебного года:
B39: Конец учебного года:

Sheet ПР-1
A1: Образовательная область «Познавательное развитие»
A3: НАПРАВЛЕНИЕ 1. СЕНСОРНЫЕ ЭТАЛОНЫ И ПОЗНАВАТЕЛЬНЫЕ ДЕЙСТВИЯ. ОКРУЖАЮЩИЙ МИР. ПРИРОДА. | AC3: ОГЛАВЛЕНИЕ
A5: №п/п | B5: ФИ ребенка | C5: Называет основные цвета (+фиолетовый в конце года) | E5: Называет оттенки цветов (голубой, розовый, темно-зеленый, сиреневый) | G5: Может самостоятельно характеризовать свойства и качества предметов, определять цвет, величину, форму, назначение, детали и части предмета | I5: Выделяет сходствои отличие между группами предметов, сравнивает предметы по 3-5 признакам | K5: Может объяснить назначение бытовой техники | M5: Имеет элементарное представление об армии и профессиях военных | O5: Может определить профессии (5-7) подобрать к ним атрибуты | Q5: Узнает и называет некоторые материалы (бумага, дерево, металл, пластмасса) | S5: Называет времена года в правильной последовательности | U5: Правильно определяет принадлежность явлений природы по сезонам | W5: Знает н соблюдает некоторые правила поведения в природе | Y5: Имеет элементарное представление о космосе, планетах | AA5: Правильно определяет последовательность частей суток, правильно их называет | AC5: Имеет представление о днях недели и называет их | AE5: Знает названия ближайших улиц, назначении некоторых общественных учреждений (магазин, поликлиника, больница, кинотеатр, кафе) | AG5: Обращает внимание на потребности животных и растений | AI5: среднее значение
C7: н.г. | D7: к.г. | E7: н.г. | F7: к.г. | G7: н.г. | H7: к.г. | I7: н.г. | J7: к.г. | K7: н.г. | L7: к.г. | M7: н.г. | N7: к.г. | O7: н.г. | P7: к.г. | Q7: н.г. | R7: к.г. | S7: н.г. | T7: к.г. | U7: н.г. | V7: к.г. | W7: н.г. | X7: к.г. | Y7: н.г. | Z7: к.г. | AA7: я | AB7: к.г. | AC7: н.г. | AD7: к.г. | AE7: н.г. | AF7: к.г. | AG7: н.г. | AH7: к.г. | AI7: н.г. | AJ7: к.г.
A8: 1 | B8: Иванов | C8: 2 | D8: 3 | E8: 3 | F8: 4 | G8: 2 | H8: 3 | I8: 2 | J8: 3 | K8: 1 | L8: 2 | M8: 1 | N8: 2 | O8: 3 | P8: 4 | Q8: 3 | R8: 5 | S8: 4 | T8: 5 | U8: 4 | V8: 5 | W8: 2 | X8: 3 | Y8: 2 | Z8: 3 | AA8: 3 | AB8: 4 | AC8: 3 | AD8: 4 | AE8: 2 | AF8: 3 | AG8: 2 | AH8: 3 | AI8: =(C8+E8+G8+K8+M8+O8+Q8+S8+U8+W8+Y8+AA8+AC8+I8+AE8+AG8)/16 -> 2.44 | AJ8: =(D8+F8+H8+L8+N8+P8+R8+T8+V8+X8+Z8+AB8+AD8+J8+AF8+AH8)/16 -> 3.50
A9: 2 | B9: Петров | AI9: =(C9+E9+G9+K9+M9+O9+Q9+S9+U9+W9+Y9+AA9+AC9+I9+AE9+AG9)/16 -> 0.00 | AJ9: 0.00
A10: 3 | B10: Сидоров | AI10: 0.00 | AJ10: 0.00
A11: 4 | AI11: 0.00 | AJ11: 0.00
A12: 5 | AI12: 0.00 | AJ12: 0.00
A13: 6 | AI13: 0.00 | AJ13: 0.00
A14: 7 | AI14: 0.00 | AJ14: 0.00
A15: 8 | AI15: 0.00 | AJ15: 0.00
A16: 9 | AI16: 0.00 | AJ16: 0.00
A17: 10 | AI17: 0.00 | AJ17: 0.00
A18: 11 | AI18: 0.00 | AJ18: 0.00
A19: 12 | AI19: 0.00 | AJ19: 0.00
A20: 13 | AI20: 0.00 | AJ20: 0.00
A21: 14 | AI21: 0.00 | AJ21: 0.00
A22: 15 | AI22: 0.00 | AJ22: 0.00
A23: 16 | AI23: 0.00 | AJ23: 0.00
A24: 17 | AI24: 0.00 | AJ24: 0.00
A25: 18 | AI25: 0.00 | AJ25: 0.00
A26: 19 | AI26: 0.00 | AJ26: 0.00
A27: 20 | AI27: 0.00 | AJ27: 0.00
A28: 21 | AI28: 0.00 | AJ28: 0.00
A29: 22 | AI29: 0.00 | AJ29: 0.00
A30: 23 | AI30: 0.00 | AJ30: 0.00
A31: 24 | AI31: 0.00 | AJ31: 0.00
B32: среднее значение: | C32: =(C8+C9+C10+C11+C12+C13+C14+C15+C16+C17+C18+C19+C20+C21+C22+C23+C24+C25+C26+C27+C28+C29+C30+C31)/C38 -> 0.67 | D32: =(D8+D9+D10+D11+D12+D13+D14+D15+D16+D17+D18+D19+D20+D21+D22+D23+D24+D25+D26+D27+D28+D29+D30+D31)/C38 -> 1.00 | E32: =(E8+E9+E10+E11+E12+E13+E14+E15+E16+E17+E18+E19+E20+E21+E22+E23+E24+E25+E26+E27+E28+E29+E30+E31)/C38 -> 1.00 | F32: =(F8+F9+F10+F11+F12+F13+F14+F15+F16+F17+F18+F19+F20+F21+F22+F23+F24+F25+F26+F27+F28+F29+F30+F31)/C38 -> 1.33 | G32: =(G8+G9+G10+G11+G12+G13+G14+G15+G16+G17+G18+G19+G20+G21+G22+G23+G24+G25+G26+G27+G28+G29+G30+G31)/C38 -> 0.67 | H32: =(H8+H9+H10+H11+H12+H13+H14+H15+H16+H17+H18+H19+H20+H21+H22+H23+H24+H25+H26+H27+H28+H29+H30+H31)/C38 -> 1.00 | I32: =(I8+I9+I10+I11+I12+I13+I14+I15+I16+I17+I18+I19+I20+I21+I22+I23+I24+I25+I26+I27+I28+I29+I30+I31)/C38 -> 0.67 | J32: =(J8+J9+J10+J11+J12+J13+J14+J15+J16+J17+J18+J19+J20+J21+J22+J23+J24+J25+J26+J27+J28+J29+J30+J31)/C38 -> 1.00 | K32: =(K8+K9+K10+K11+K12+K13+K14+K15+K16+K17+K18+K19+K20+K21+K22+K23+K24+K25+K26+K27+K28+K29+K30+K31)/C38 -> 0.33 | L32: =(L8+L9+L10+L11+L12+L13+L14+L15+L16+L17+L18+L19+L20+L21+L22+L23+L24+L25+L26+L27+L28+L29+L30+L31)/C38 -> 0.67 | M32: =(M8+M9+M10+M11+M12+M13+M14+M15+M16+M17+M18+M19+M20+M21+M22+M23+M24+M25+M26+M27+M28+M29+M30+M31)/C38 -> 0.33 | N32: =(N8+N9+N10+N11+N12+N13+N14+N15+N16+N17+N18+N19+N20+N21+N22+N23+N24+N25+N26+N27+N28+N29+N30+N31)/C38 -> 0.67 | O32: =(O8+O9+O10+O11+O12+O13+O14+O15+O16+O17+O18+O19+O20+O21+O22+O23+O24+O25+O26+O27+O28+O29+O30+O31)/C38 -> 1.00 | P32: =(P8+P9+P10+P11+P12+P13+P14+P15+P16+P17+P18+P19+P20+P21+P22+P23+P24+P25+P26+P27+P28+P29+P30+P31)/C38 -> 1.33 | Q32: =(Q8+Q9+Q10+Q11+Q12+Q13+Q14+Q15+Q16+Q17+Q18+Q19+Q20+Q21+Q22+Q23+Q24+Q25+Q26+Q27+Q28+Q29+Q30+Q31)/C38 -> 1.00 | R32: =(R8+R9+R10+R11+R12+R13+R14+R15+R16+R17+R18+R19+R20+R21+R22+R23+R24+R25+R26+R27+R28+R29+R30+R31)/C38 -> 1.67 | S32: =(S8+S9+S10+S11+S12+S13+S14+S15+S16+S17+S18+S19+S20+S21+S22+S23+S24+S25+S26+S27+S28+S29+S30+S31)/C38 -> 1.33 | T32: =(T8+T9+T10+T11+T12+T13+T14+T15+T16+T17+T18+T19+T20+T21+T22+T23+T24+T25+T26+T27+T28+T29+T30+T31)/C38 -> 1.67 | U32: =(U8+U9+U10+U11+U12+U13+U14+U15+U16+U17+U18+U19+U20+U21+U22+U23+U24+U25+U26+U27+U28+U29+U30+U31)/C38 -> 1.33 | V32: =(V8+V9+V10+V11+V12+V13+V14+V15+V16+V17+V18+V19+V20+V21+V22+V23+V24+V25+V26+V27+V28+V29+V30+V31)/C38 -> 1.67 | W32: =(W8+W9+W10+W11+W12+W13+W14+W15+W16+W17+W18+W19+W20+W21+W22+W23+W24+W25+W26+W27+W28+W29+W30+W31)/C38 -> 0.67 | X32: =(X8+X9+X10+X11+X12+X13+X14+X15+X16+X17+X18+X19+X20+X21+X22+X23+X24+X25+X26+X27+X28+X29+X30+X31)/C38 -> 1.00 | Y32: =(Y8+Y9+Y10+Y11+Y12+Y13+Y14+Y15+Y16+Y17+Y18+Y19+Y20+Y21+Y22+Y23+Y24+Y25+Y26+Y27+Y28+Y29+Y30+Y31)/C38 -> 0.67 | Z32: =(Z8+Z9+Z10+Z11+Z12+Z13+Z14+Z15+Z16+Z17+Z18+Z19+Z20+Z21+Z22+Z23+Z24+Z25+Z26+Z27+Z28+Z29+Z30+Z31)/C38 -> 1.00 | AA32: =(AA8+AA9+AA10+AA11+AA12+AA13+AA14+AA15+AA16+AA17+AA18+AA19+AA20+AA21+AA22+AA23+AA24+AA25+AA26+AA27+AA28+AA29+AA30+AA31)/C38 -> 1.00 | AB32: =(AB8+AB9+AB10+AB11+AB12+AB13+AB14+AB15+AB16+AB17+AB18+AB19+AB20+AB21+AB22+AB23+AB24+AB25+AB26+AB27+AB28+AB29+AB30+AB31)/C38 -> 1.33 | AC32: =(AC8+AC9+AC10+AC11+AC12+AC13+AC14+AC15+AC16+AC17+AC18+AC19+AC20+AC21+AC22+AC23+AC24+AC25+AC26+AC27+AC28+AC29+AC30+AC31)/C38 -> 1.00 | AD32: =(AD8+AD9+AD10+AD11+AD12+AD13+AD14+AD15+AD16+AD17+AD18+AD19+AD20+AD21+AD22+AD23+AD24+AD25+AD26+AD27+AD28+AD29+AD30+AD31)/C38 -> 1.33 | AE32: =(AE8+AE9+AE10+AE11+AE12+AE13+AE14+AE15+AE16+AE17+AE18+AE19+AE20+AE21+AE22+AE23+AE24+AE25+AE26+AE27+AE28+AE29+AE30+AE31)/C38 -> 0.67 | AF32: =(AF8+AF9+AF10+AF11+AF12+AF13+AF14+AF15+AF16+AF17+AF18+AF19+AF20+AF21+AF22+AF23+AF24+AF25+AF26+AF27+AF28+AF29+AF30+AF31)/C38 -> 1.00 | AG32: =(AG8+AG9+AG10+AG11+AG12+AG13+AG14+AG15+AG16+AG17+AG18+AG19+AG20+AG21+AG22+AG23+AG24+AG25+AG26+AG27+AG28+AG29+AG30+AG31)/C38 -> 0.67 | AH32: =(AH8+AH9+AH10+AH11+AH12+AH13+AH14+AH15+AH16+AH17+AH18+AH19+AH20+AH21+AH22+AH23+AH24+AH25+AH26+AH27+AH28+AH29+AH30+AH31)/C38 -> 1.00 | AI32: =(C32+E32+G32+K32+M32+O32+Q32+S32+U32+W32+Y32+AA32+AC32+I32+AE32+AG32)/16 -> 0.81 | AJ32: =(D32+F32+H32+L32+N32+P32+R32+T32+V32+X32+Z32+AB32+AD32+J32+AF32+AH32)/16 -> 1.17
B36: начало года
C37: всего | D37: норма | E37: ниже нормы | F37: низкий
B38: количество детей | C38: =COUNTA(B8:B31) -> 3 | D38: =COUNTIF(AI8:AI31,">=3,8") -> 0 | E38: =COUNTIFS(AI8:AI31,"<3,7",AI8:AI31,">=2,3") -> 1 | F38: =COUNTIFS(AI8:AI31,"<2,2",AI8:AI31,">0") -> 0
B39: % | C39: 100 | D39: =D38*C39/C38 -> 0 | E39: =E38*C39/C38 -> 33.3 | F39: =F38*C39/C38 -> 0.0
B42: конец года
C43: всего | D43: норма | E43: ниже нормы | F43: низкий
B44: количество детей | C44: =COUNTA(B8:B31) -> 3 | D44: =COUNTIF(AJ8:AJ31,">=3,8") -> 0 | E44: =COUNTIFS(AJ8:AJ31,"<3,7",AJ8:AJ31,">=2,3") -> 1 | F44: =COUNTIFS(AJ8:AJ31,"<2,2",AJ8:AJ31,">0") -> 0
B45: % | C45: 100 | D45: =D44*C45/C44 -> 0.0 | E45: =E44*C45/C44 -> 33.3 | F45: =F44*C45/C44 -> 0.0

Sheet ПР-2
A1: НАПРАВЛЕНИЕ 2. МАТЕМАТИЧЕСКИЕ ПРЕДСТАВЛЕНИЯ | AA1: ОГЛАВЛЕНИЕ
A3: №п/п | B3: ФИ ребенка | C3: Владеет навыком счета в прямом порядке до 10 | G3: считывает предметы из большего количества в пределах 10 | I3: Правильно отвечает на вопросы: Сколько всего? Который по счету? | K3: Умеет сравнивать рядом стоящие числа (со зрительной опорой) | M3: Может сравнивать множества и уравнивать их разными способами | O3: Умеет составлять числа из единиц в пределах 5 | Q3: Называет части, умеет сравнивать целое и часть | S3: Понимает, что результат счета не зависит от расположения предметов и направления счета | U3: Узнает и различает плоские и объем­ные геометрические фигуры (круг, овал, квадрат, прямоугольник, треугольник, шар, куб, цилиндр) | W3: Правильно собирает разрезные картинки (из 4 X частей, все виды разрезов) | Y3: Умеет ориентироваться на плане, схеме группы, определяет и называвает положенне предмета относительно другого (левее, правее, сзади и т. д.) | AA3: Умеет сравнивать предметы с помощбю условной меры по длине, шири­не, высоте | AC3: Умеет пользоваться сравнительными прилагательными (выше, ниже, шире, уже, длиннее, короче) | AE3: Группирует предметы по двум-трем признакам (цвету, форме, размеру, материалу) | AG3: среднее значение
C4: количественного счета | E4: порядкового счета
C5: н.г. | D5: к.г. | E5: н.г. | F5: к.г. | G5: н.г. | H5: к.г. | I5: н.г. | J5: к.г. | K5: н.г. | L5: к.г. | M5: н.г. | N5: к.г. | O5: н.г. | P5: к.г. | Q5: н.г. | R5: к.г. | S5: н.г. | T5: к.г. | U5: н.г. | V5: к.г. | W5: н.г. | X5: к.г. | Y5: н.г. | Z5: к.г. | AA5: н.г. | AB5: к.г. | AC5: н.г. | AD5: к.г. | AE5: н.г. | AF5: к.г. | AG5: н.г. | AH5: к.г.
A6: 1 | B6: Иванов | C6: 2 | D6: 2 | E6: 2 | F6: 3 | G6: 2 | H6: 3 | I6: 2 | J6: 3 | K6: 2 | L6: 3 | M6: 2 | N6: 3 | O6: 2 | P6: 3 | Q6: 2 | R6: 3 | S6: 2 | T6: 4 | U6: 2 | V6: 3 | W6: 4 | X6: 5 | Y6: 5 | Z6: 5 | AA6: 4 | AB6: 5 | AC6: 3 | AD6: 4 | AE6: 2 | AF6: 3 | AG6: =(C6+E6+G6+I6+K6+M6+O6+Q6+S6+U6+W6+Y6+AA6+AC6+AE6)/15 -> 2.53 | AH6: =(D6+F6+H6+J6+L6+N6+P6+R6+T6+V6+X6+Z6+AB6+AD6+AF6)/15 -> 3.47
A7: 2 | B7: Петров | C7: 3 | D7: 4 | E7: 4 | F7: 5 | G7: 3 | H7: 4 | I7: 4 | J7: 5 | K7: 5 | L7: 5 | M7: 2 | N7: 3 | O7: 3 | P7: 4 | Q7: 5 | R7: 5 | S7: 4 | T7: 5 | U7: 2 | V7: 3 | W7: 3 | X7: 4 | Y7: 2 | Z7: 3 | AA7: 2 | AB7: 3 | AC7: 4 | AD7: 4 | AE7: 4 | AF7: 3 | AG7: =(C7+E7+G7+I7+K7+M7+O7+Q7+S7+U7+W7+Y7+AA7+AC7+AE7)/15 -> 3.33 | AH7: =(D7+F7+H7+J7+L7+N7+P7+R7+T7+V7+X7+Z7+AB7+AD7+AF7)/15 -> 4.00
A8: 3 | B8: Сидоров | C8: 2 | D8: 2 | E8: 2 | F8: 3 | G8: 2 | H8: 3 | I8: 2 | J8: 3 | K8: 2 | L8: 3 | M8: 2 | N8: 3 | O8: 2 | P8: 3 | Q8: 2 | R8: 3 | S8: 2 | T8: 4 | U8: 2 | V8: 3 | W8: 4 | X8: 5 | Y8: 5 | Z8: 5 | AA8: 4 | AB8: 5 | AC8: 3 | AD8: 4 | AE8: 2 | AF8: 3 | AG8: 2.53 | AH8: 3.47
A9: 4 | AG9: 0.00 | AH9: 0.00
A10: 5 | AG10: 0.00 | AH10: 0.00
A11: 6 | AG11: 0.00 | AH11: 0.00
A12: 7 | AG12: 0.00 | AH12: 0.00
A13: 8 | AG13: 0.00 | AH13: 0.00
A14: 9 | AG14: 0.00 | AH14: 0.00
A15: 10 | AG15: 0.00 | AH15: 0.00
A16: 11 | AG16: 0.00 | AH16: 0.00
A17: 12 | AG17: 0.00 | AH17: 0.00
A18: 13 | AG18: 0.00 | AH18: 0.00
A19: 14 | AG19: 0.00 | AH19: 0.00
A20: 15 | AG20: 0.00 | AH20: 0.00
A21: 16 | AG21: 0.00 | AH21: 0.00
A22: 17 | AG22: 0.00 | AH22: 0.00
A23: 18 | AG23: 0.00 | AH23: 0.00
A24: 19 | AG24: 0.00 | AH24: 0.00
A25: 20 | AG25: 0.00 | AH25: 0.00
A26: 21 | AG26: 0.00 | AH26: 0.00
A27: 22 | AG27: 0.00 | AH27: 0.00
A28: 23 | AG28: 0.00 | AH28: 0.00
A29: 24 | AG29: 0.00 | AH29: 0.00
B30: среднее значение: | C30: =(C6+C7+C8+C9+C10+C11+C12+C13+C14+C15+C16+C17+C18+C19+C20+C21+C22+C23+C24+C25+C26+C27+C28+C29)/C35 -> 2.33 | D30: =(D6+D7+D8+D9+D10+D11+D12+D13+D14+D15+D16+D17+D18+D19+D20+D21+D22+D23+D24+D25+D26+D27+D28+D29)/C35 -> 2.67 | E30: =(E6+E7+E8+E9+E10+E11+E12+E13+E14+E15+E16+E17+E18+E19+E20+E21+E22+E23+E24+E25+E26+E27+E28+E29)/C35 -> 2.67 | F30: =(F6+F7+F8+F9+F10+F11+F12+F13+F14+F15+F16+F17+F18+F19+F20+F21+F22+F23+F24+F25+F26+F27+F28+F29)/C35 -> 3.67 | G30: =(G6+G7+G8+G9+G10+G11+G12+G13+G14+G15+G16+G17+G18+G19+G20+G21+G22+G23+G24+G25+G26+G27+G28+G29)/C35 -> 2.33 | H30: =(H6+H7+H8+H9+H10+H11+H12+H13+H14+H15+H16+H17+H18+H19+H20+H21+H22+H23+H24+H25+H26+H27+H28+H29)/C35 -> 3.33 | I30: =(I6+I7+I8+I9+I10+I11+I12+I13+I14+I15+I16+I17+I18+I19+I20+I21+I22+I23+I24+I25+I26+I27+I28+I29)/C35 -> 2.67 | J30: =(J6+J7+J8+J9+J10+J11+J12+J13+J14+J15+J16+J17+J18+J19+J20+J21+J22+J23+J24+J25+J26+J27+J28+J29)/C35 -> 3.67 | K30: =(K6+K7+K8+K9+K10+K11+K12+K13+K14+K15+K16+K17+K18+K19+K20+K21+K22+K23+K24+K25+K26+K27+K28+K29)/C35 -> 3.00 | L30: =(L6+L7+L8+L9+L10+L11+L12+L13+L14+L15+L16+L17+L18+L19+L20+L21+L22+L23+L24+L25+L26+L27+L28+L29)/C35 -> 3.67 | M30: =(M6+M7+M8+M9+M10+M11+M12+M13+M14+M15+M16+M17+M18+M19+M20+M21+M22+M23+M24+M25+M26+M27+M28+M29)/C35 -> 2.00 | N30: =(N6+N7+N8+N9+N10+N11+N12+N13+N14+N15+N16+N17+N18+N19+N20+N21+N22+N23+N24+N25+N26+N27+N28+N29)/C35 -> 3.00 | O30: =(O6+O7+O8+O9+O10+O11+O12+O13+O14+O15+O16+O17+O18+O19+O20+O21+O22+O23+O24+O25+O26+O27+O28+O29)/C35 -> 2.33 | P30: =(P6+P7+P8+P9+P10+P11+P12+P13+P14+P15+P16+P17+P18+P19+P20+P21+P22+P23+P24+P25+P26+P27+P28+P29)/C35 -> 3.33 | Q30: =(Q6+Q7+Q8+Q9+Q10+Q11+Q12+Q13+Q14+Q15+Q16+Q17+Q18+Q19+Q20+Q21+Q22+Q23+Q24+Q25+Q26+Q27+Q28+Q29)/C35 -> 3.00 | R30: =(R6+R7+R8+R9+R10+R11+R12+R13+R14+R15+R16+R17+R18+R19+R20+R21+R22+R23+R24+R25+R26+R27+R28+R29)/C35 -> 3.67 | S30: =(S6+S7+S8+S9+S10+S11+S12+S13+S14+S15+S16+S17+S18+S19+S20+S21+S22+S23+S24+S25+S26+S27+S28+S29)/C35 -> 2.67 | T30: =(T6+T7+T8+T9+T10+T11+T12+T13+T14+T15+T16+T17+T18+T19+T20+T21+T22+T23+T24+T25+T26+T27+T28+T29)/C35 -> 4.33 | U30: =(U6+U7+U8+U9+U10+U11+U12+U13+U14+U15+U16+U17+U18+U19+U20+U21+U22+U23+U24+U25+U26+U27+U28+U29)/C35 -> 2.00 | V30: =(V6+V7+V8+V9+V10+V11+V12+V13+V14+V15+V16+V17+V18+V19+V20+V21+V22+V23+V24+V25+V26+V27+V28+V29)/C35 -> 3.00 | W30: =(W6+W7+W8+W9+W10+W11+W12+W13+W14+W15+W16+W17+W18+W19+W20+W21+W22+W23+W24+W25+W26+W27+W28+W29)/C35 -> 3.67 | X30: =(X6+X7+X8+X9+X10+X11+X12+X13+X14+X15+X16+X17+X18+X19+X20+X21+X22+X23+X24+X25+X26+X27+X28+X29)/C35 -> 4.67 | Y30: =(Y6+Y7+Y8+Y9+Y10+Y11+Y12+Y13+Y14+Y15+Y16+Y17+Y18+Y19+Y20+Y21+Y22+Y23+Y24+Y25+Y26+Y27+Y28+Y29)/C35 -> 4.00 | Z30: =(Z6+Z7+Z8+Z9+Z10+Z11+Z12+Z13+Z14+Z15+Z16+Z17+Z18+Z19+Z20+Z21+Z22+Z23+Z24+Z25+Z26+Z27+Z28+Z29)/C35 -> 4.33 | AA30: =(AA6+AA7+AA8+AA9+AA10+AA11+AA12+AA13+AA14+AA15+AA16+AA17+AA18+AA19+AA20+AA21+AA22+AA23+AA24+AA25+AA26+AA27+AA28+AA29)/C35 -> 3.33 | AB30: =(AB6+AB7+AB8+AB9+AB10+AB11+AB12+AB13+AB14+AB15+AB16+AB17+AB18+AB19+AB20+AB21+AB22+AB23+AB24+AB25+AB26+AB27+AB28+AB29)/C35 -> 4.33 | AC30: =(AC6+AC7+AC8+AC9+AC10+AC11+AC12+AC13+AC14+AC15+AC16+AC17+AC18+AC19+AC20+AC21+AC22+AC23+AC24+AC25+AC26+AC27+AC28+AC29)/C35 -> 3.33 | AD30: =(AD6+AD7+AD8+AD9+AD10+AD11+AD12+AD13+AD14+AD15+AD16+AD17+AD18+AD19+AD20+AD21+AD22+AD23+AD24+AD25+AD26+AD27+AD28+AD29)/C35 -> 4.00 | AE30: =(AE6+AE7+AE8+AE9+AE10+AE11+AE12+AE13+AE14+AE15+AE16+AE17+AE18+AE19+AE20+AE21+AE22+AE23+AE24+AE25+AE26+AE27+AE28+AE29)/C35 -> 2.67 | AF30: =(AF6+AF7+AF8+AF9+AF10+AF11+AF12+AF13+AF14+AF15+AF16+AF17+AF18+AF19+AF20+AF21+AF22+AF23+AF24+AF25+AF26+AF27+AF28+AF29)/C35 -> 3.00 | AG30: =(C30+E30+G30+I30+K30+M30+O30+Q30+S30+U30+W30+Y30+AA30+AC30+AE30)/15 -> 2.80 | AH30: 3.64
B33: начало года
C34: всего | D34: норма | E34: ниже нормы | F34: низкий
B35: количество детей | C35: =COUNTA(B6:B29) -> 3 | D35: =COUNTIF(AG6:AG29,">=3,8") -> 0 | E35: =COUNTIFS(AG6:AG29,"<3,7",AG6:AG29,">=2,3") -> 3 | F35: =COUNTIFS(AG6:AG29,"<2,2",AG6:AG29,">0") -> 0
B36: % | C36: 100 | D36: =D35*C36/C35 -> 0 | E36: =E35*C36/C35 -> 100.0 | F36: =F35*C36/C35 -> 0.0
B39: конец года
C40: всего | D40: норма | E40: ниже нормы | F40: низкий
B41: количество детей | C41: =COUNTA(B5:B28) -> 3 | D41: =COUNTIF(AH6:AH29,">=3,8") -> 1 | E41: =COUNTIFS(AH6:AH29,"<3,7",AH6:AH29,">=2,3") -> 2 | F41: =COUNTIFS(AH6:AH29,"<2,2",AH6:AH29,">0") -> 0
B42: % | C42: 100 | D42: =D41*C42/C41 -> 33.3 | E42: =E41*C42/C41 -> 66.7 | F42: =F41*C42/C41 -> 0.0

Sheet ИТОГ ПР
B1: Обобщение результатов педагогической диагностики по направлениям
B2: ОО «Познавательное развитие»
F3: ОГЛАВЛЕНИЕ
C5: Сенсорные эталоны и познавательные действия. Окружающий мир. Природа. | D5: Математические представления | E5: Средний уровень познавательного развития
C6: ФЦКМ | D6: ФЭМП | E6: 3
B7: начало | C7: ='ПР-1'!AI32 -> 0.81 | D7: ='ПР-2'!AG30 -> 2.80 | E7: =(C7+D7)/2 -> 1.81
B8: конец | C8: ='ПР-1'!AJ32 -> 1.17 | D8: ='ПР-2'!AH30 -> 3.64 | E8: =(C8+D8)/2 -> 2.41
B29: ВЫВОДЫ:
B30: Начало учебного года:
B38: Конец учебного года:

Sheet РР-1
A1: Образовательная область «Речевое развитие»
A2: НАПРАВЛЕНИЕ I. ФОРМИРОВАНИЕ СЛОВАРЯ | AL2: ОГЛАВЛЕНИЕ
A4: №п/п | B4: ФИ ребенка | C4: Правильно произносит сущ-ые по всем изучаемым темам | E4: Понимает значение и действия, выраженные | K4: Использует в речи | Q4: Понимает и использует в речи обобщающие слова | AI4: Понимает и использует в речи | AU4: среднее значение
E5: приставочными глаголами | G5: личными глаголами | I5: возвратными глаголами | K5: прилагательные обозначающие признаки предметов | M5: наречия, характеризующие отношение к труду (старательно, бережно) | O5: глаголы, характеризующие трудовую деятельность людей | Q5: транспорт | S5: посуда | U5: одежда | W5: овощи | Y5: фрукты | AA5: ягоды | AC5: мебель | AE5: дикие животные | AG5: домашние животные | AI5: сининимы | AK5: антиномы | AM5: простые предлоги | AO5: местоимения | AQ5: наречия | AS5: числительные
C6: н.г. | D6: к.г. | E6: н.г. | F6: к.г. | G6: н.г. | H6: к.г. | I6: н.г. | J6: к.г. | K6: н.г. | L6: к.г. | M6: н.г. | N6: к.г. | O6: н.г. | P6: к.г. | Q6: н.г. | R6: к.г. | S6: н.г. | T6: к.г. | U6: н.г. | V6: к.г. | W6: н.г. | X6: к.г. | Y6: н.г. | Z6: к.г. | AA6: н.г. | AB6: к.г. | AC6: н.г. | AD6: к.г. | AE6: н.г. | AF6: к.г. | AG6: н.г. | AH6: к.г. | AI6: н.г. | AJ6: к.г. | AK6: н.г. | AL6: к.г. | AM6: н.г. | AN6: к.г. | AO6: н.г. | AP6: к.г. | AQ6: н.г. | AR6: к.г. | AS6: н.г. | AT6: к.г. | AU6: н.г. | AV6: к.г.
A7: 1 | B7: Иванов | C7: 2 | D7: 3 | E7: 3 | F7: 4 | G7: 2 | H7: 3 | I7: 3 | J7: 4 | K7: 4 | L7: 5 | M7: 2 | N7: 4 | O7: 3 | P7: 4 | Q7: 3 | R7: 4 | S7: 2 | T7: 3 | U7: 4 | V7: 5 | W7: 5 | X7: 5 | Y7: 2 | Z7: 4 | AA7: 1 | AB7: 3 | AC7: 3 | AD7: 4 | AE7: 4 | AF7: 4 | AG7: 3 | AH7: 5 | AI7: 2 | AJ7: 4 | AK7: 3 | AL7: 5 | AM7: 2 | AN7: 4 | AO7: 2 | AP7: 3 | AQ7: 2 | AR7: 3 | AS7: 2 | AT7: 3 | AU7: =(C7+E7+G7+I7+K7+M7+O7+Q7+S7+U7+W7+Y7+AA7+AC7+AE7+AG7+AI7+AK7+AM7+AO7+AQ7+AS7)/22 -> 2.68 | AV7: =(D7+F7+H7+J7+L7+N7+P7+R7+T7+V7+X7+Z7+AB7+AD7+AF7+AH7+AJ7+AL7+AN7+AP7+AR7+AT7)/22 -> 3.91
A8: 2 | B8: Петров | AU8: =(C8+E8+G8+I8+K8+M8+O8+Q8+S8+U8+W8+Y8+AA8+AC8+AE8+AG8+AI8+AK8+AM8+AO8+AQ8+AS8)/22 -> 0.00 | AV8: 0.00
A9: 3 | B9: Сидоров | AU9: 0.00 | AV9: 0.00
A10: 4 | AU10: 0.00 | AV10: 0.00
A11: 5 | AU11: 0.00 | AV11: 0.00
A12: 6 | AU12: 0.00 | AV12: 0.00
A13: 7 | AU13: 0.00 | AV13: 0.00
A14: 8 | AU14: 0.00 | AV14: 0.00
A15: 9 | AU15: 0.00 | AV15: 0.00
A16: 10 | AU16: 0.00 | AV16: 0.00
A17: 11 | AU17: 0.00 | AV17: 0.00
A18: 12 | AU18: 0.00 | AV18: 0.00
A19: 13 | AU19: 0.00 | AV19: 0.00
A20: 14 | AU20: 0.00 | AV20: 0.00
A21: 15 | AU21: 0.00 | AV21: 0.00
A22: 16 | AU22: 0.00 | AV22: 0.00
A23: 17 | AU23: 0.00 | AV23: 0.00
A24: 18 | AU24: 0.00 | AV24: 0.00
A25: 19 | AU25: 0.00 | AV25: 0.00
A26: 20 | AU26: 0.00 | AV26: 0.00
A27: 21 | AU27: 0.00 | AV27: 0.00
A28: 22 | AU28: 0.00 | AV28: 0.00
A29: 23 | AU29: 0.00 | AV29: 0.00
A30: 24 | AU30: 0.00 | AV30: 0.00
B31: среднее значение: | C31: =(C7+C8+C9+C10+C11+C12+C13+C14+C15+C16+C17+C18+C19+C20+C21+C22+C23+C24+C25+C26+C27+C28+C29+C30)/COUNTA($B$7:$B$30) -> 0.67 | D31: =(D7+D8+D9+D10+D11+D12+D13+D14+D15+D16+D17+D18+D19+D20+D21+D22+D23+D24+D25+D26+D27+D28+D29+D30)/COUNTA($B$7:$B$30) -> 1.00 | E31: =(E7+E8+E9+E10+E11+E12+E13+E14+E15+E16+E17+E18+E19+E20+E21+E22+E23+E24+E25+E26+E27+E28+E29+E30)/COUNTA($B$7:$B$30) -> 1.00 | F31: =(F7+F8+F9+F10+F11+F12+F13+F14+F15+F16+F17+F18+F19+F20+F21+F22+F23+F24+F25+F26+F27+F28+F29+F30)/COUNTA($B$7:$B$30) -> 1.33 | G31: =(G7+G8+G9+G10+G11+G12+G13+G14+G15+G16+G17+G18+G19+G20+G21+G22+G23+G24+G25+G26+G27+G28+G29+G30)/COUNTA($B$7:$B$30) -> 0.67 | H31: =(H7+H8+H9+H10+H11+H12+H13+H14+H15+H16+H17+H18+H19+H20+H21+H22+H23+H24+H25+H26+H27+H28+H29+H30)/COUNTA($B$7:$B$30) -> 1.00 | I31: =(I7+I8+I9+I10+I11+I12+I13+I14+I15+I16+I17+I18+I19+I20+I21+I22+I23+I24+I25+I26+I27+I28+I29+I30)/COUNTA($B$7:$B$30) -> 1.00 | J31: =(J7+J8+J9+J10+J11+J12+J13+J14+J15+J16+J17+J18+J19+J20+J21+J22+J23+J24+J25+J26+J27+J28+J29+J30)/COUNTA($B$7:$B$30) -> 1.33 | K31: =(K7+K8+K9+K10+K11+K12+K13+K14+K15+K16+K17+K18+K19+K20+K21+K22+K23+K24+K25+K26+K27+K28+K29+K30)/COUNTA($B$7:$B$30) -> 1.33 | L31: =(L7+L8+L9+L10+L11+L12+L13+L14+L15+L16+L17+L18+L19+L20+L21+L22+L23+L24+L25+L26+L27+L28+L29+L30)/COUNTA($B$7:$B$30) -> 1.67 | M31: =(M7+M8+M9+M10+M11+M12+M13+M14+M15+M16+M17+M18+M19+M20+M21+M22+M23+M24+M25+M26+M27+M28+M29+M30)/COUNTA($B$7:$B$30) -> 0.67 | N31: =(N7+N8+N9+N10+N11+N12+N13+N14+N15+N16+N17+N18+N19+N20+N21+N22+N23+N24+N25+N26+N27+N28+N29+N30)/COUNTA($B$7:$B$30) -> 1.33 | O31: =(O7+O8+O9+O10+O11+O12+O13+O14+O15+O16+O17+O18+O19+O20+O21+O22+O23+O24+O25+O26+O27+O28+O29+O30)/COUNTA($B$7:$B$30) -> 1.00 | P31: =(P7+P8+P9+P10+P11+P12+P13+P14+P15+P16+P17+P18+P19+P20+P21+P22+P23+P24+P25+P26+P27+P28+P29+P30)/COUNTA($B$7:$B$30) -> 1.33 | Q31: =(Q7+Q8+Q9+Q10+Q11+Q12+Q13+Q14+Q15+Q16+Q17+Q18+Q19+Q20+Q21+Q22+Q23+Q24+Q25+Q26+Q27+Q28+Q29+Q30)/COUNTA($B$7:$B$30) -> 1.00 | R31: =(R7+R8+R9+R10+R11+R12+R13+R14+R15+R16+R17+R18+R19+R20+R21+R22+R23+R24+R25+R26+R27+R28+R29+R30)/COUNTA($B$7:$B$30) -> 1.33 | S31: =(S7+S8+S9+S10+S11+S12+S13+S14+S15+S16+S17+S18+S19+S20+S21+S22+S23+S24+S25+S26+S27+S28+S29+S30)/COUNTA($B$7:$B$30) -> 0.67 | T31: =(T7+T8+T9+T10+T11+T12+T13+T14+T15+T16+T17+T18+T19+T20+T21+T22+T23+T24+T25+T26+T27+T28+T29+T30)/COUNTA($B$7:$B$30) -> 1.00 | U31: =(U7+U8+U9+U10+U11+U12+U13+U14+U15+U16+U17+U18+U19+U20+U21+U22+U23+U24+U25+U26+U27+U28+U29+U30)/COUNTA($B$7:$B$30) -> 1.33 | V31: =(V7+V8+V9+V10+V11+V12+V13+V14+V15+V16+V17+V18+V19+V20+V21+V22+V23+V24+V25+V26+V27+V28+V29+V30)/COUNTA($B$7:$B$30) -> 1.67 | W31: =(W7+W8+W9+W10+W11+W12+W13+W14+W15+W16+W17+W18+W19+W20+W21+W22+W23+W24+W25+W26+W27+W28+W29+W30)/COUNTA($B$7:$B$30) -> 1.67 | X31: =(X7+X8+X9+X10+X11+X12+X13+X14+X15+X16+X17+X18+X19+X20+X21+X22+X23+X24+X25+X26+X27+X28+X29+X30)/COUNTA($B$7:$B$30) -> 1.67 | Y31: =(Y7+Y8+Y9+Y10+Y11+Y12+Y13+Y14+Y15+Y16+Y17+Y18+Y19+Y20+Y21+Y22+Y23+Y24+Y25+Y26+Y27+Y28+Y29+Y30)/COUNTA($B$7:$B$30) -> 0.67 | Z31: =(Z7+Z8+Z9+Z10+Z11+Z12+Z13+Z14+Z15+Z16+Z17+Z18+Z19+Z20+Z21+Z22+Z23+Z24+Z25+Z26+Z27+Z28+Z29+Z30)/COUNTA($B$7:$B$30) -> 1.33 | AA31: =(AA7+AA8+AA9+AA10+AA11+AA12+AA13+AA14+AA15+AA16+AA17+AA18+AA19+AA20+AA21+AA22+AA23+AA24+AA25+AA26+AA27+AA28+AA29+AA30)/COUNTA($B$7:$B$30) -> 0.33 | AB31: =(AB7+AB8+AB9+AB10+AB11+AB12+AB13+AB14+AB15+AB16+AB17+AB18+AB19+AB20+AB21+AB22+AB23+AB24+AB25+AB26+AB27+AB28+AB29+AB30)/COUNTA($B$7:$B$30) -> 1.00 | AC31: =(AC7+AC8+AC9+AC10+AC11+AC12+AC13+AC14+AC15+AC16+AC17+AC18+AC19+AC20+AC21+AC22+AC23+AC24+AC25+AC26+AC27+AC28+AC29+AC30)/COUNTA($B$7:$B$30) -> 1.00 | AD31: =(AD7+AD8+AD9+AD10+AD11+AD12+AD13+AD14+AD15+AD16+AD17+AD18+AD19+AD20+AD21+AD22+AD23+AD24+AD25+AD26+AD27+AD28+AD29+AD30)/COUNTA($B$7:$B$30) -> 1.33 | AE31: =(AE7+AE8+AE9+AE10+AE11+AE12+AE13+AE14+AE15+AE16+AE17+AE18+AE19+AE20+AE21+AE22+AE23+AE24+AE25+AE26+AE27+AE28+AE29+AE30)/COUNTA($B$7:$B$30) -> 1.33 | AF31: =(AF7+AF8+AF9+AF10+AF11+AF12+AF13+AF14+AF15+AF16+AF17+AF18+AF19+AF20+AF21+AF22+AF23+AF24+AF25+AF26+AF27+AF28+AF29+AF30)/COUNTA($B$7:$B$30) -> 1.33 | AG31: =(AG7+AG8+AG9+AG10+AG11+AG12+AG13+AG14+AG15+AG16+AG17+AG18+AG19+AG20+AG21+AG22+AG23+AG24+AG25+AG26+AG27+AG28+AG29+AG30)/COUNTA($B$7:$B$30) -> 1.00 | AH31: =(AH7+AH8+AH9+AH10+AH11+AH12+AH13+AH14+AH15+AH16+AH17+AH18+AH19+AH20+AH21+AH22+AH23+AH24+AH25+AH26+AH27+AH28+AH29+AH30)/COUNTA($B$7:$B$30) -> 1.67 | AI31: =(AI7+AI8+AI9+AI10+AI11+AI12+AI13+AI14+AI15+AI16+AI17+AI18+AI19+AI20+AI21+AI22+AI23+AI24+AI25+AI26+AI27+AI28+AI29+AI30)/COUNTA($B$7:$B$30) -> 0.67 | AJ31: =(AJ7+AJ8+AJ9+AJ10+AJ11+AJ12+AJ13+AJ14+AJ15+AJ16+AJ17+AJ18+AJ19+AJ20+AJ21+AJ22+AJ23+AJ24+AJ25+AJ26+AJ27+AJ28+AJ29+AJ30)/COUNTA($B$7:$B$30) -> 1.33 | AK31: =(AK7+AK8+AK9+AK10+AK11+AK12+AK13+AK14+AK15+AK16+AK17+AK18+AK19+AK20+AK21+AK22+AK23+AK24+AK25+AK26+AK27+AK28+AK29+AK30)/COUNTA($B$7:$B$30) -> 1.00 | AL31: =(AL7+AL8+AL9+AL10+AL11+AL12+AL13+AL14+AL15+AL16+AL17+AL18+AL19+AL20+AL21+AL22+AL23+AL24+AL25+AL26+AL27+AL28+AL29+AL30)/COUNTA($B$7:$B$30) -> 1.67 | AM31: =(AM7+AM8+AM9+AM10+AM11+AM12+AM13+AM14+AM15+AM16+AM17+AM18+AM19+AM20+AM21+AM22+AM23+AM24+AM25+AM26+AM27+AM28+AM29+AM30)/COUNTA($B$7:$B$30) -> 0.67 | AN31: =(AN7+AN8+AN9+AN10+AN11+AN12+AN13+AN14+AN15+AN16+AN17+AN18+AN19+AN20+AN21+AN22+AN23+AN24+AN25+AN26+AN27+AN28+AN29+AN30)/COUNTA($B$7:$B$30) -> 1.33 | AO31: =(AO7+AO8+AO9+AO10+AO11+AO12+AO13+AO14+AO15+AO16+AO17+AO18+AO19+AO20+AO21+AO22+AO23+AO24+AO25+AO26+AO27+AO28+AO29+AO30)/COUNTA($B$7:$B$30) -> 0.67 | AP31: =(AP7+AP8+AP9+AP10+AP11+AP12+AP13+AP14+AP15+AP16+AP17+AP18+AP19+AP20+AP21+AP22+AP23+AP24+AP25+AP26+AP27+AP28+AP29+AP30)/COUNTA($B$7:$B$30) -> 1.00 | AQ31: =(AQ7+AQ8+AQ9+AQ10+AQ11+AQ12+AQ13+AQ14+AQ15+AQ16+AQ17+AQ18+AQ19+AQ20+AQ21+AQ22+AQ23+AQ24+AQ25+AQ26+AQ27+AQ28+AQ29+AQ30)/COUNTA($B$7:$B$30) -> 0.67 | AR31: =(AR7+AR8+AR9+AR10+AR11+AR12+AR13+AR14+AR15+AR16+AR17+AR18+AR19+AR20+AR21+AR22+AR23+AR24+AR25+AR26+AR27+AR28+AR29+AR30)/COUNTA($B$7:$B$30) -> 1.00 | AS31: =(AS7+AS8+AS9+AS10+AS11+AS12+AS13+AS14+AS15+AS16+AS17+AS18+AS19+AS20+AS21+AS22+AS23+AS24+AS25+AS26+AS27+AS28+AS29+AS30)/COUNTA($B$7:$B$30) -> 0.67 | AT31: =(AT7+AT8+AT9+AT10+AT11+AT12+AT13+AT14+AT15+AT16+AT17+AT18+AT19+AT20+AT21+AT22+AT23+AT24+AT25+AT26+AT27+AT28+AT29+AT30)/COUNTA($B$7:$B$30) -> 1.00 | AU31: =(C31+E31+G31+I31+K31+M31+O31+Q31+S31+U31+W31+Y31+AA31+AC31+AE31+AG31+AI31+AK31+AM31+AO31+AQ31+AS31)/22 -> 0.89 | AV31: =(D31+F31+H31+J31+L31+N31+P31+R31+T31+V31+X31+Z31+AB31+AD31+AF31+AH31+AJ31+AL31+AN31+AP31+AR31+AT31)/22 -> 1.30
B35: начало года
C36: всего | D36: норма | E36: ниже нормы | F36: низкий
B37: количество детей | C37: =COUNTA(B7:B30) -> 3 | D37: =COUNTIF(AU7:AU30,">=3,8") -> 0 | E37: =COUNTIFS(AU7:AU30,"<3,7",AU7:AU30,">=2,3") -> 1 | F37: =COUNTIFS(AU7:AU30,"<2,2",AU7:AU30,">0") -> 0
B38: % | C38: 100 | D38: =D37*C38/C37 -> 0 | E38: =E37*C38/C37 -> 33.3 | F38: =F37*C38/C37 -> 0.0
B41: конец года
C42: всего | D42: норма | E42: ниже нормы | F42: низкий
B43: количество детей | C43: =COUNTA(B7:B30) -> 3 | D43: =COUNTIF(AV7:AV30,">=3,8") -> 1 | E43: =COUNTIFS(AV7:AV30,"<3,7",AV7:AV30,">=2,3") -> 0 | F43: =COUNTIFS(AV7:AV30,"<2,2",AV7:AV30,">0") -> 0
B44: % | C44: 100 | D44: =D43*C44/C43 -> 33.3 | E44: =E43*C44/C43 -> 0.0 | F44: =F43*C44/C43 -> 0.0

Sheet РР-2
A1: НАПРАВЛЕНИЕ 2. ЗВУКОВАЯ КУЛЬТУРА РЕЧИ. | K1: ОГЛАВЛЕНИЕ
A3: №п/п | B3: ФИ ребенка | C3: Правильно, отчетливо произносит все звуки родного языка | E3: Различает на слух и отчетливо произносит часто смешиваемые звуки [с]-[ш], [ж]-[з] | G3: Определяет место звука в слове | I3: Речт интоннационно выразительна | K3: Умеет передавать голосом интонацию, изменять темп речи в организованной и свободной деятельности | M3: Среднее значение
C5: н.г. | D5: к.г. | E5: н.г. | F5: к.г. | G5: н.г. | H5: к.г. | I5: н.г. | J5: к.г. | K5: н.г. | L5: к.г. | M5: н.г. | N5: к.г.
A6: 1 | B6: Иванов | C6: 2 | D6: 3 | E6: 2 | F6: 3 | G6: 2 | H6: 3 | I6: 4 | J6: 5 | K6: 4 | L6: 5 | M6: =(C6+E6+G6+I6+K6)/5 -> 2.80 | N6: =(D6+F6+H6+J6+L6)/5 -> 3.80
A7: 2 | B7: Петров | M7: =(C7+E7+G7+I7+K7)/5 -> 0.00 | N7: 0.00
A8: 3 | B8: Сидоров | M8: 0.00 | N8: 0.00
A9: 4 | M9: 0.00 | N9: 0.00
A10: 5 | M10: 0.00 | N10: 0.00
A11: 6 | M11: 0.00 | N11: 0.00
A12: 7 | M12: 0.00 | N12: 0.00
A13: 8 | M13: 0.00 | N13: 0.00
A14: 9 | M14: 0.00 | N14: 0.00
A15: 10 | M15: 0.00 | N15: 0.00
A16: 11 | M16: 0.00 | N16: 0.00
A17: 12 | M17: 0.00 | N17: 0.00
A18: 13 | M18: 0.00 | N18: 0.00
A19: 14 | M19: 0.00 | N19: 0.00
A20: 15 | M20: 0.00 | N20: 0.00
A21: 16 | M21: 0.00 | N21: 0.00
A22: 17 | M22: 0.00 | N22: 0.00
A23: 18 | M23: 0.00 | N23: 0.00
A24: 19 | M24: 0.00 | N24: 0.00
A25: 20 | M25: 0.00 | N25: 0.00
A26: 21 | M26: 0.00 | N26: 0.00
A27: 22 | M27: 0.00 | N27: 0.00
A28: 23 | M28: 0.00 | N28: 0.00
A29: 24 | M29: 0.00 | N29: 0.00
B30: среднее значение: | C30: =(C6+C7+C8+C9+C10+C11+C12+C13+C14+C15+C16+C17+C18+C19+C20+C21+C22+C23+C24+C25+C26+C27+C28+C29)/COUNTA($B$6:$B$29) -> 0.67 | D30: =(D6+D7+D8+D9+D10+D11+D12+D13+D14+D15+D16+D17+D18+D19+D20+D21+D22+D23+D24+D25+D26+D27+D28+D29)/COUNTA($B$6:$B$29) -> 1.00 | E30: 0.67 | F30: 1.00 | G30: 0.67 | H30: 1.00 | I30: 1.33 | J30: 1.67 | K30: 1.33 | L30: 1.67 | M30: =(C30+E30+G30+I30+K30)/5 -> 0.93 | N30: =(D30+F30+H30+J30+L30)/5 -> 1.27
B32: начало года
C33: всего | D33: норма | E33: ниже нормы | F33: низкий
B34: количество детей | C34: =COUNTA(B6:B29) -> 3 | D34: =COUNTIF(M6:M29,">=3,8") -> 0 | E34: =COUNTIFS(M6:M29,"<3,7",M6:M29,">=2,3") -> 1 | F34: =COUNTIFS(M6:M29,"<2,2",M6:M29,">0") -> 0
B35: % | C35: 100 | D35: =D34*C35/C34 -> 0 | E35: =E34*C35/C34 -> 33.3 | F35: =F34*C35/C34 -> 0.0
B37: конец года
C38: всего | D38: норма | E38: ниже нормы | F38: низкий
B39: количество детей | C39: =COUNTA(B5:B28) -> 3 | D39: =COUNTIF(N6:N29,">=3,8") -> 1 | E39: =COUNTIFS(N6:N29,"<3,7",N6:N29,">=2,3") -> 0 | F39: =COUNTIFS(N6:N29,"<2,2",N6:N29,">0") -> 0
B40: % | C40: 100 | D40: =D39*C40/C39 -> 33.3 | E40: =E39*C40/C39 -> 0.0 | F40: =F39*C40/C39 -> 0.0

Sheet РР-3
A1: НАПРАВЛЕНИЕ 3. ГРАММАТИЧЕСКИЙ СТРОЙ РЕЧИ. | V1: ОГЛАВЛЕНИЕ
A3: №п/п | B3: ФИ ребенка | C3: Согласует прилагательные и числительные с существительными | I3: Правильно использует в речи | O3: Образует и использует в речи существительные | W3: Составляет по образцу | AA3: Образовывает слова, пользуясь суффикасми, приставками | AC3: При инсценировках пользуется прямой и косвенной речью | AE3: среднее значение
C4: в роде | E4: числе | G4: падеже | I4: несклоняемые существительные (метро) | K4: глаголы "одеть", "надеть" | M4: сущ-ые мн.ч. в Р.п. | O4: в единственном и множественном числе в Именительном падеже | Q4: в косвенных падежах без предлога и с простыми предлогами | S4: с уменьшительно-ласкат. суффиксами | U4: с суффиксами -онок, -енок, -ат-, -ят- | W4: простые предложения | Y4: сложные предложения
C5: н.г. | D5: к.г. | E5: н.г. | F5: к.г. | G5: н.г. | H5: к.г. | I5: н.г. | J5: к.г. | K5: н.г. | L5: к.г. | M5: н.г. | N5: к.г. | O5: н.г. | P5: к.г. | Q5: н.г. | R5: к.г. | S5: н.г. | T5: к.г. | U5: н.г. | V5: к.г. | W5: н.г. | X5: к.г. | Y5: н.г. | Z5: к.г. | AA5: н.г. | AB5: к.г. | AC5: н.г. | AD5: к.г. | AE5: н.г. | AF5: к.г.
A6: 1 | B6: Иванов | AE6: =(C6+E6+G6+I6+K6+M6+O6+Q6+S6+U6+W6+Y6+AA6+AC6)/14 -> 0.00 | AF6: =(D6+F6+H6+J6+L6+N6+P6+R6+T6+V6+X6+Z6+AB6+AD6)/14 -> 0.00
A7: 2 | B7: Петров | AE7: =(C7+E7+G7+I7+K7+M7+O7+Q7+S7+U7+W7+Y7+AA7+AC7)/14 -> 0.00 | AF7: 0.00
A8: 3 | B8: Сидоров | AE8: 0.00 | AF8: 0.00
A9: 4 | AE9: 0.00 | AF9: 0.00
A10: 5 | AE10: 0.00 | AF10: 0.00
A11: 6 | AE11: 0.00 | AF11: 0.00
A12: 7 | AE12: 0.00 | AF12: 0.00
A13: 8 | AE13: 0.00 | AF13: 0.00
A14: 9 | AE14: 0.00 | AF14: 0.00
A15: 10 | AE15: 0.00 | AF15: 0.00
A16: 11 | AE16: 0.00 | AF16: 0.00
A17: 12 | AE17: 0.00 | AF17: 0.00
A18: 13 | AE18: 0.00 | AF18: 0.00
A19: 14 | AE19: 0.00 | AF19: 0.00
A20: 15 | AE20: 0.00 | AF20: 0.00
A21: 16 | AE21: 0.00 | AF21: 0.00
A22: 17 | AE22: 0.00 | AF22: 0.00
A23: 18 | AE23: 0.00 | AF23: 0.00
A24: 19 | AE24: 0.00 | AF24: 0.00
A25: 20 | AE25: 0.00 | AF25: 0.00
A26: 21 | AE26: 0.00 | AF26: 0.00
A27: 22 | AE27: 0.00 | AF27: 0.00
A28: 23 | AE28: 0.00 | AF28: 0.00
A29: 24 | AE29: 0.00 | AF29: 0.00
B30: среднее значение: | C30: =(C6+C7+C8+C9+C10+C11+C12+C13+C14+C15+C16+C17+C18+C19+C20+C21+C22+C23+C24+C25+C26+C27+C28+C29)/COUNTA($B$6:$B$29) -> 0.00 | D30: =(D6+D7+D8+D9+D10+D11+D12+D13+D14+D15+D16+D17+D18+D19+D20+D21+D22+D23+D24+D25+D26+D27+D28+D29)/COUNTA($B$6:$B$29) -> 0.00 | E30: 0.00 | F30: 0.00 | G30: 0.00 | H30: 0.00 | I30: 0.00 | J30: 0.00 | K30: 0.00 | L30: 0.00 | M30: 0.00 | N30: 0.00 | O30: 0.00 | P30: 0.00 | Q30: 0.00 | R30: 0.00 | S30: 0.00 | T30: 0.00 | U30: 0.00 | V30: 0.00 | W30: 0.00 | X30: 0.00 | Y30: 0.00 | Z30: 0.00 | AA30: 0.00 | AB30: 0.00 | AC30: 0.00 | AD30: 0.00 | AE30: =(C30+E30+G30+I30+K30+M30+O30+Q30+S30+U30+W30+Y30+AA30+AC30)/14 -> 0.00 | AF30: 0.00
B32: начало года
C33: всего | D33: норма | E33: ниже нормы | F33: низкий
B34: количество детей | C34: =COUNTA($B$6:$B$29) -> 3 | D34: =COUNTIF(AE6:AE29,">=3,8") -> 0 | E34: =COUNTIFS(AE6:AE29,"<3,7",AE6:AE29,">=2,3") -> 0 | F34: =COUNTIFS(AE6:AE29,"<2,2",AE6:AE29,">0") -> 0
B35: % | C35: 100 | D35: =D34*C35/C34 -> 0 | E35: =E34*C35/C34 -> 0.0 | F35: =F34*C35/C34 -> 0.0
B37: конец года
C38: всего | D38: норма | E38: ниже нормы | F38: низкий
B39: количество детей | C39: =COUNTA(B6:B29) -> 3 | D39: =COUNTIF(AF6:AF29,">=3,8") -> 0 | E39: =COUNTIFS(AF6:AF29,"<3,7",AF6:AF29,">=2,3") -> 0 | F39: =COUNTIFS(AF6:AF29,"<2,2",AF6:AF29,">0") -> 0
B40: % | C40: 100 | D40: =D39*C40/C39 -> 0.0 | E40: =E39*C40/C39 -> 0.0 | F40: =F39*C40/C39 -> 0.0

Sheet РР-4
B1: НАПРАВЛЕНИЕ 4. СВЯЗНАЯ РЕЧЬ. ИНТЕРЕС К ХУДОЖЕСТВЕННОЙ ЛИТЕРАТУРЕ | AC1: ОГЛАВЛЕНИЕ
B3: №п/п | C3: ФИ ребенка | D3: Может составлять по образцу расссказы | J3: Может составлять по плану (мнемотаблице/коллективному плану) рассказы | P3: Может пересказывать знакомую сказку или короткий рассказ | R3: Вступает в диалог и продуктивно его поддерживает | X3: Слушает произведение до конца, правильно отвечает на вопросы, подбирает иллюстрации к содержанию текста | Z3: Может определить жанр литературного произведения (сказка, рассказ, стихотворение) | AB3: Правильно отвечает на вопросы по прочитанному/ прослушанному тексту, даёт характеристику героев | AD3: Умеет пересказывать знакомые тексты со зрительной опорой | AF3: Выразительно рассказывает стихи | AH3: среднее значение
D4: описания | F4: по сюжетной картине | H4: по серии сюжетных картинок | J4: описания | L4: по сюжетной картине | N4: по серии сюжетных картинок | R4: слушает собеседника до конца | T4: задает вопросы по теме диалога | V4: отвечает на вопрсы полно или кратко в зависимости от контекста
D5: н.г. | E5: к.г. | F5: н.г. | G5: к.г. | H5: н.г. | I5: к.г. | J5: н.г. | K5: к.г. | L5: н.г. | M5: к.г. | N5: н.г. | O5: к.г. | P5: н.г. | Q5: к.г. | R5: н.г. | S5: к.г. | T5: н.г. | U5: к.г. | V5: н.г. | W5: к.г. | X5: н.г. | Y5: к.г. | Z5: н.г. | AA5: к.г. | AB5: н.г. | AC5: к.г. | AD5: н.г. | AE5: к.г. | AF5: н.г. | AG5: к.г. | AH5: н.г. | AI5: к.г.
B6: 1 | C6: Иванов | AH6: =(D6+F6+H6+J6+L6+N6+P6+R6+T6+V6+X6+Z6+AB6+AD6+AF6)/15 -> 0.00 | AI6: =(E6+G6+I6+K6+M6+O6+Q6+S6+U6+W6+Y6+AA6+AC6+AE6+AG6)/15 -> 0.00
B7: 2 | C7: Петров | AH7: =(D7+F7+H7+J7+L7+N7+P7+R7+T7+V7+X7+Z7+AB7+AD7+AF7)/15 -> 0.00 | AI7: 0.00
B8: 3 | C8: Сидоров | AH8: 0.00 | AI8: 0.00
B9: 4 | AH9: 0.00 | AI9: 0.00
B10: 5 | AH10: 0.00 | AI10: 0.00
B11: 6 | AH11: 0.00 | AI11: 0.00
B12: 7 | AH12: 0.00 | AI12: 0.00
B13: 8 | AH13: 0.00 | AI13: 0.00
B14: 9 | AH14: 0.00 | AI14: 0.00
B15: 10 | AH15: 0.00 | AI15: 0.00
B16: 11 | AH16: 0.00 | AI16: 0.00
B17: 12 | AH17: 0.00 | AI17: 0.00
B18: 13 | AH18: 0.00 | AI18: 0.00
B19: 14 | AH19: 0.00 | AI19: 0.00
B20: 15 | AH20: 0.00 | AI20: 0.00
B21: 16 | AH21: 0.00 | AI21: 0.00
B22: 17 | AH22: 0.00 | AI22: 0.00
B23: 18 | AH23: 0.00 | AI23: 0.00
B24: 19 | AH24: 0.00 | AI24: 0.00
B25: 20 | AH25: 0.00 | AI25: 0.00
B26: 21 | AH26: 0.00 | AI26: 0.00
B27: 22 | AH27: 0.00 | AI27: 0.00
B28: 23 | AH28: 0.00 | AI28: 0.00
B29: 24 | AH29: 0.00 | AI29: 0.00
C30: среднее значение: | D30: =(D6+D7+D8+D9+D10+D11+D12+D13+D14+D15+D16+D17+D18+D19+D20+D21+D22+D23+D24+D25+D26+D27+D28+D29)/COUNTA($C$6:$C$29) -> 0.00 | E30: =(E6+E7+E8+E9+E10+E11+E12+E13+E14+E15+E16+E17+E18+E19+E20+E21+E22+E23+E24+E25+E26+E27+E28+E29)/COUNTA($C$6:$C$29) -> 0.00 | F30: 0.00 | G30: 0.00 | H30: 0.00 | I30: 0.00 | J30: 0.00 | K30: 0.00 | L30: 0.00 | M30: 0.00 | N30: 0.00 | O30: 0.00 | P30: 0.00 | Q30: 0.00 | R30: 0.00 | S30: 0.00 | T30: 0.00 | U30: 0.00 | V30: 0.00 | W30: 0.00 | X30: 0.00 | Y30: 0.00 | Z30: 0.00 | AA30: 0.00 | AB30: 0.00 | AC30: 0.00 | AD30: 0.00 | AE30: 0.00 | AF30: 0.00 | AG30: 0.00 | AH30: 0.00 | AI30: 0.00
C33: начало года
D34: всего | E34: норма | F34: ниже нормы | G34: низкий
C35: количество детей | D35: =COUNTA(C6:C29) -> 3 | E35: =COUNTIF(AH6:AH29,">=3,8") -> 0 | F35: =COUNTIFS(AH6:AH29,"<3,7",AH6:AH29,">=2,3") -> 0 | G35: =COUNTIFS(AH6:AH29,"<2,2",AH6:AH29,">0") -> 0
C36: % | D36: 100 | E36: =E35*D36/D35 -> 0 | F36: =F35*D36/D35 -> 0.0 | G36: =G35*D36/D35 -> 0.0
C39: конец года
D40: всего | E40: норма | F40: ниже нормы | G40: низкий
C41: количество детей | D41: =COUNTA(C5:C28) -> 3 | E41: =COUNTIF(AI6:AI29,">=3,8") -> 0 | F41: =COUNTIFS(AI6:AI29,"<3,7",AI6:AI29,">=2,3") -> 0 | G41: =COUNTIFS(AI6:AI29,"<2,2",AI6:AI29,">0") -> 0
C42: % | D42: 100 | E42: =E41*D42/D41 -> 0.0 | F42: =F41*D42/D41 -> 0.0 | G42: =G41*D42/D41 -> 0.0

Sheet РР-5
B1: НАПРАВЛЕНИЕ 5. ПОДГОТОВКА К ОБУЧЕНИЮ ГРАМОТЕ | AD1: ОГЛАВЛЕНИЕ
B3: №п/п | C3: ФИ ребенка | D3: Производит анализ слов различной звуковой структуры | F3: Выделяет словесное ударение и определяет егоместо с структуре слова | H3: Правильно характеризует звуки | R3: Умеет составлять схемуы звукового анализа слова | T3: Определяет кол-во и последовательность слов в предложении | V3: Определяет в "зашумленных" условиях изученные буквы | X3: Может определить на слух и назвать | AJ3: среднее значение
H4: гласные | J4: согласный твердый | L4: мягкий согласный | N4: ударный гласный | P4: безударный гласный | X4: гласный звук (ударный, безударный) | Z4: согласный звук | AB4: согласный твердый звук | AD4: согласный мягкий звук | AF4: согласный звонкий звук | AH4: согласный глухой звук
D5: н.г. | E5: к.г. | F5: н.г. | G5: к.г. | H5: н.г. | I5: к.г. | J5: н.г. | K5: к.г. | L5: н.г. | M5: к.г. | N5: н.г. | O5: к.г. | P5: н.г. | Q5: к.г. | R5: н.г. | S5: к.г. | T5: н.г. | U5: к.г. | V5: н.г. | W5: к.г. | X5: н.г. | Y5: к.г. | Z5: н.г. | AA5: к.г. | AB5: н.г. | AC5: к.г. | AD5: н.г. | AE5: к.г. | AF5: н.г. | AG5: к.г. | AH5: н.г. | AI5: к.г. | AJ5: н.г. | AK5: к.г.
B6: 1 | C6: Иванов | AJ6: =(D6+F6+H6+J6+L6+N6+P6+R6+T6+V6+X6+Z6+AB6+AD6+AF6+AH6)/16 -> 0.00 | AK6: =(E6+G6+I6+K6+M6+O6+Q6+S6+U6+W6+Y6+AA6+AC6+AE6+AG6+AI6)/16 -> 0.00
B7: 2 | C7: Петров | AJ7: =(D7+F7+H7+J7+L7+N7+P7+R7+T7+V7+X7+Z7+AB7+AD7+AF7+AH7)/16 -> 0.00 | AK7: 0.00
B8: 3 | C8: Сидоров | AJ8: 0.00 | AK8: 0.00
B9: 4 | AJ9: 0.00 | AK9: 0.00
B10: 5 | AJ10: 0.00 | AK10: 0.00
B11: 6 | AJ11: 0.00 | AK11: 0.00
B12: 7 | AJ12: 0.00 | AK12: 0.00
B13: 8 | AJ13: 0.00 | AK13: 0.00
B14: 9 | AJ14: 0.00 | AK14: 0.00
B15: 10 | AJ15: 0.00 | AK15: 0.00
B16: 11 | AJ16: 0.00 | AK16: 0.00
B17: 12 | AJ17: 0.00 | AK17: 0.00
B18: 13 | AJ18: 0.00 | AK18: 0.00
B19: 14 | AJ19: 0.00 | AK19: 0.00
B20: 15 | AJ20: 0.00 | AK20: 0.00
B21: 16 | AJ21: 0.00 | AK21: 0.00
B22: 17 | AJ22: 0.00 | AK22: 0.00
B23: 18 | AJ23: 0.00 | AK23: 0.00
B24: 19 | AJ24: 0.00 | AK24: 0.00
B25: 20 | AJ25: 0.00 | AK25: 0.00
B26: 21 | AJ26: 0.00 | AK26: 0.00
B27: 22 | AJ27: 0.00 | AK27: 0.00
B28: 23 | AJ28: 0.00 | AK28: 0.00
B29: 24 | AJ29: 0.00 | AK29: 0.00
C30: среднее значение: | D30: =(D6+D7+D8+D9+D10+D11+D12+D13+D14+D15+D16+D17+D18+D19+D20+D21+D22+D23+D24+D25+D26+D27+D28+D29)/COUNTA($C$6:$C$29) -> 0.00 | E30: =(E6+E7+E8+E9+E10+E11+E12+E13+E14+E15+E16+E17+E18+E19+E20+E21+E22+E23+E24+E25+E26+E27+E28+E29)/COUNTA($C$6:$C$29) -> 0.00 | F30: 0.00 | G30: 0.00 | H30: 0.00 | I30: 0.00 | J30: 0.00 | K30: 0.00 | L30: 0.00 | M30: 0.00 | N30: 0.00 | O30: 0.00 | P30: 0.00 | Q30: 0.00 | R30: 0.00 | S30: 0.00 | T30: 0.00 | U30: 0.00 | V30: 0.00 | W30: 0.00 | X30: 0.00 | Y30: 0.00 | Z30: 0.00 | AA30: 0.00 | AB30: 0.00 | AC30: 0.00 | AD30: 0.00 | AE30: 0.00 | AF30: 0.00 | AG30: 0.00 | AH30: 0.00 | AI30: 0.00 | AJ30: 0.00 | AK30: 0.00
C33: начало года
D34: всего | E34: норма | F34: ниже нормы | G34: низкий
C35: количество детей | D35: =COUNTA(C6:C29) -> 3 | E35: =COUNTIF(AJ6:AJ29,">=3,8") -> 0 | F35: =COUNTIFS(AJ6:AJ29,"<3,7",AJ6:AJ29,">=2,3") -> 0 | G35: =COUNTIFS(AN5:AN28,"<2,2",AN5:AN28,">0") -> 0
C36: % | D36: 100 | E36: =E35*D36/D35 -> 0 | F36: =F35*D36/D35 -> 0.0 | G36: =G35*D36/D35 -> 0.0
C39: конец года
D40: всего | E40: норма | F40: ниже нормы | G40: низкий
C41: количество детей | D41: =COUNTA(C5:C28) -> 3 | E41: =COUNTIF(AK6:AK29,">=3,8") -> 0 | F41: =COUNTIFS(AK6:AK29,"<3,7",AK6:AK29,">=2,3") -> 0 | G41: =COUNTIFS(AK6:AK29,"<2,2",AK6:AK29,">0") -> 0
C42: % | D42: 100 | E42: =E41*D42/D41 -> 0.0 | F42: =F41*D42/D41 -> 0.0 | G42: =G41*D42/D41 -> 0.0

Sheet ИТОГ РР
A1: Обобщение результатов педагогической диагностики по направлениям
C2: ОО «Речевое развитие» | F2: ОГЛАВЛЕНИЕ
B4: Формирование словаря | C4: Звуковая культура речи. | D4: Грамматический строй | E4: Связная речь. Интерес к художественной литературе | F4: Подготовка к обучению грамоте | G4: Средний уровень развития
B5: 1 | C5: 2 | D5: 3 | E5: 4 | F5: 5 | G5: 6
A6: начало | B6: ='РР-1'!AU31 -> 0.89 | C6: ='РР-2'!M30 -> 0.93 | D6: ='РР-3'!AE30 -> 0.00 | E6: ='РР-4'!AH30 -> 0.00 | F6: ='РР-5'!AJ30 -> 0.00 | G6: =(B6+C6+D6+E6+F6)/5 -> 0.37
A7: конец | B7: ='РР-1'!AV31 -> 1.30 | C7: ='РР-2'!N30 -> 1.27 | D7: ='РР-3'!AF30 -> 0.00 | E7: ='РР-4'!AI30 -> 0.00 | F7: ='РР-5'!AK30 -> 0.00 | G7: =(B7+C7+D7+E7+F7)/5 -> 0.51
A28: ВЫВОДЫ:
A29: Начало учебного года:
A37: Конец учебного года:

Sheet ХЭ-1
A1: Образовательная область «Художественно-эстетическое развитие»
A3: НАПРАВЛЕНИЕ I. ПРИОБЩЕНИЕ К ИСКУССТВУ | P3: ОГЛАВЛЕНИЕ
A5: №п/п | B5: ФИ ребенка | C5: Вделяет, называет, группирует произведения по видам искусства (литература, музыка, изобразительное искусство, архитектура, балет, театр, цирк, фотография) | E5: Знает и называет материалы для разных видов художественной деятельности | G5: Умеет назвать вид художественной деятельности, профессию творческих людей | I5: Знает и называет некоторых художникв, композиторов | K5: Знает виды и жанры фольклора | M5: Эмоционально отзывчив напроизведения искусства | O5: Принимает активное участие в художественной деятельности | Q5: среднее значение
C7: н.г. | D7: к.г. | E7: н.г. | F7: к.г. | G7: н.г. | H7: к.г. | I7: н.г. | J7: к.г. | K7: н.г. | L7: к.г. | M7: н.г. | N7: к.г. | O7: н.г. | P7: к.г. | Q7: н.г. | R7: к.г.
A8: 1 | B8: Иванов | Q8: =(C8+E8+G8+I8+K8+M8+O8)/7 -> 0.00 | R8: =(D8+F8+H8+J8+L8+N8+P8)/7 -> 0.00
A9: 2 | B9: Петров | Q9: =(C9+E9+G9+I9+K9+M9+O9)/7 -> 0.00 | R9: =(D9+F9+H9+J9+L9+N9+P9)/7 -> 0.00
A10: 3 | B10: Сидоров | Q10: 0.00 | R10: 0.00
A11: 4 | Q11: 0.00 | R11: 0.00
A12: 5 | Q12: 0.00 | R12: 0.00
A13: 6 | Q13: 0.00 | R13: 0.00
A14: 7 | Q14: 0.00 | R14: 0.00
A15: 8 | Q15: 0.00 | R15: 0.00
A16: 9 | Q16: 0.00 | R16: 0.00
A17: 10 | Q17: 0.00 | R17: 0.00
A18: 11 | Q18: 0.00 | R18: 0.00
A19: 12 | Q19: 0.00 | R19: 0.00
A20: 13 | Q20: 0.00 | R20: 0.00
A21: 14 | Q21: 0.00 | R21: 0.00
A22: 15 | Q22: 0.00 | R22: 0.00
A23: 16 | Q23: 0.00 | R23: 0.00
A24: 17 | Q24: 0.00 | R24: 0.00
A25: 18 | Q25: 0.00 | R25: 0.00
A26: 19 | Q26: 0.00 | R26: 0.00
A27: 20 | Q27: 0.00 | R27: 0.00
A28: 21 | Q28: 0.00 | R28: 0.00
A29: 22 | Q29: 0.00 | R29: 0.00
A30: 23 | Q30: 0.00 | R30: 0.00
A31: 24 | Q31: 0.00 | R31: 0.00
B32: среднее значение: | C32: =(C8+C9+C10+C11+C12+C13+C14+C15+C16+C17+C18+C19+C20+C21+C22+C23+C24+C25+C26+C27+C28+C29+C30+C31)/COUNTA($B$8:$B$31) -> 0.00 | D32: =(D8+D9+D10+D11+D12+D13+D14+D15+D16+D17+D18+D19+D20+D21+D22+D23+D24+D25+D26+D27+D28+D29+D30+D31)/COUNTA($B$8:$B$31) -> 0.00 | E32: 0.00 | F32: 0.00 | G32: 0.00 | H32: 0.00 | I32: 0.00 | J32: 0.00 | K32: 0.00 | L32: 0.00 | M32: 0.00 | N32: 0.00 | O32: 0.00 | P32: 0.00 | Q32: 0.00 | R32: 0.00
B34: начало года
C35: всего | D35: норма | E35: ниже нормы | F35: низкий
B36: количество детей | C36: =COUNTA(B8:B31) -> 3 | D36: =COUNTIF(Q8:Q31,">=3,8") -> 0 | E36: =COUNTIFS(Q8:Q31,"<3,7",Q8:Q31,">=2,3") -> 0 | F36: =COUNTIFS(Q8:Q31,"<2,2",Q8:Q31,">0") -> 0
B37: % | C37: 100 | D37: =D36*C37/C36 -> 0.00 | E37: =E36*C37/C36 -> 0.00 | F37: =F36*C37/C36 -> 0.00
B39: конец года
C40: всего | D40: норма | E40: ниже нормы | F40: низкий
B41: количество детей | C41: =COUNTA(B8:B31) -> 3 | D41: =COUNTIF(R8:R31,">=3,8") -> 0 | E41: =COUNTIFS(R8:R31,"<3,7",R8:R31,">=2,3") -> 0 | F41: =COUNTIFS(R8:R31,"<2,2",R8:R31,">0") -> 0
B42: % | C42: 100 | D42: =D41*C42/C41 -> 0.00 | E42: =E41*C42/C41 -> 0.00 | F42: =F41*C42/C41 -> 0.00

Sheet ХЭ-2
B1: НАПРАВЛЕНИЕ 2. КОНСТРУКТИВНАЯ ДЕЯТЕЛЬНОСТЬ | O1: ОГЛАВЛЕНИЕ
B3: №п/п | C3: ФИ ребенка | D3: Умеет выделять и называть части построек, определить их назначение и пространственное расположение | F3: Может собирать разрезные картинки из 6 и более частей с разными видами разрезов, кубики — из 9 | H3: Умеет создавать узоры из палочек, мозаики по схеме и по инструкции | J3: Умеет строить из разных конструкторов постройки по образцу, схеме, описанию | L3: Умеет сгибать лист бумаги вчетверо,создавать объемные фигуры (корзинка, кубик, лодочка) | N3: среднее значение
D5: н.г. | E5: к.г. | F5: н.г. | G5: к.г. | H5: н.г. | I5: к.г. | J5: н.г. | K5: к.г. | L5: н.г. | M5: к.г. | N5: н.г. | O5: к.г.
B6: 1 | C6: Иванов | N6: =(D6+F6+H6+J6+L6)/5 -> 0.00 | O6: =(E6+G6+I6+K6+M6)/5 -> 0.00
B7: 2 | C7: Петров | N7: =(D7+F7+H7+J7+L7)/5 -> 0.00 | O7: =(E7+G7+I7+K7+M7)/5 -> 0.00
B8: 3 | C8: Сидоров | N8: 0.00 | O8: 0.00
B9: 4 | N9: 0.00 | O9: 0.00
B10: 5 | N10: 0.00 | O10: 0.00
B11: 6 | N11: 0.00 | O11: 0.00
B12: 7 | N12: 0.00 | O12: 0.00
B13: 8 | N13: 0.00 | O13: 0.00
B14: 9 | N14: 0.00 | O14: 0.00
B15: 10 | N15: 0.00 | O15: 0.00
B16: 11 | N16: 0.00 | O16: 0.00
B17: 12 | N17: 0.00 | O17: 0.00
B18: 13 | N18: 0.00 | O18: 0.00
B19: 14 | N19: 0.00 | O19: 0.00
B20: 15 | N20: 0.00 | O20: 0.00
B21: 16 | N21: 0.00 | O21: 0.00
B22: 17 | N22: 0.00 | O22: 0.00
B23: 18 | N23: 0.00 | O23: 0.00
B24: 19 | N24: 0.00 | O24: 0.00
B25: 20 | N25: 0.00 | O25: 0.00
B26: 21 | N26: 0.00 | O26: 0.00
B27: 22 | N27: 0.00 | O27: 0.00
B28: 23 | N28: 0.00 | O28: 0.00
B29: 24 | N29: 0.00 | O29: 0.00
C30: среднее значение: | D30: =(D6+D7+D8+D9+D10+D11+D12+D13+D14+D15+D16+D17+D18+D19+D20+D21+D22+D23+D24+D25+D26+D27+D28+D29)/COUNTA($C$6:$C$29) -> 0.00 | E30: =(E6+E7+E8+E9+E10+E11+E12+E13+E14+E15+E16+E17+E18+E19+E20+E21+E22+E23+E24+E25+E26+E27+E28+E29)/COUNTA($C$6:$C$29) -> 0.00 | F30: 0.00 | G30: 0.00 | H30: 0.00 | I30: 0.00 | J30: 0.00 | K30: 0.00 | L30: 0.00 | M30: 0.00 | N30: 0.00 | O30: 0.00
C33: начало года
D34: всего | E34: норма | F34: ниже нормы | G34: низкий
C35: количество детей | D35: =COUNTA(C6:C29) -> 3 | E35: =COUNTIF(N6:N29,">=3,8") -> 0 | F35: =COUNTIFS(N6:N29,"<3,7",N6:N29,">=2,3") -> 0 | G35: =COUNTIFS(N6:N29,"<2,2",N6:N29,">0") -> 0
C36: % | D36: 100 | E36: =E35*D36/D35 -> 0.00 | F36: =F35*D36/D35 -> 0.00 | G36: =G35*D36/D35 -> 0.00
C39: конец года
D40: всего | E40: норма | F40: ниже нормы | G40: низкий
C41: количество детей | D41: =COUNTA(C12:C35) -> 3 | E41: =COUNTIF(O6:O29,">=3,8") -> 0 | F41: =COUNTIFS(O6:O29,"<3,7",O6:O29,">=2,3") -> 0 | G41: =COUNTIFS(O6:O29,"<2,2",O6:O29,">0") -> 0
C42: % | D42: 100 | E42: =E41*D42/D41 -> 0.00 | F42: =F41*D42/D41 -> 0.00 | G42: =G41*D42/D41 -> 0.00

Sheet ХЭ-3
A1: НАПРАВЛЕНИЕ 3. ИЗОБРАЗИТЕЛЬНАЯ ДЕЯТЕЛЬНОСТЬ | AC1: ОГЛАВЛЕНИЕ
A3: №п/п | B3: ФИ ребенка | C3: Рисование | K3: Аппликация | Q3: Лепка | W3: Прикладное творчество | AE3: среднее значение
C4: Правильно держит карандаш, кисть, соблюдает алгоритм рисования красками | E4: В рисунках есть изображение предметов и явлений, сюжетные композиции | G4: Передает в рисунке движение, правильно располагает в пространстве | I4: Правильно называет некоторые росписи с опорой на предмет, или его изображение или элемент росписи (Полхов-Майдан, городец, гжель, хохлома, мезенская роспись, жостовская) | K4: Правильно держит кисть для клея, соблюдает алгоритм аппликации | M4: Создает из готовых геометрических форм орнаменты (по образцу, по представлению), образы предметов окружающего мира | O4: Пользуется ножницами, правильно их держит, режет по прямой, преобразовывает одни фигуры в другие (квадрат в круг) | Q4: Использует разные приемы работы с пластилином, лепит мелкие детали | S4: Создает из пластилина объемные одиночные предметы, в т.ч. Человека, соблюдает пропорции | U4: Создает из пластилина объемные сюжетные композиции, в т.ч. декоративные | W4: Сгибает лист бумаги вчетверо в разных напралениях | Y4: Умеет создавать из бумаги объемные фигуры | AA4: Создает подетки из проидных и других материалов, прочно соединяя части | AC4: Принимает участие в изготовлении пособий для занятий и самостоятельной деятельности, ремонту книг, настольно-печатных игр
C5: н.г. | D5: к.г. | E5: н.г. | F5: к.г. | G5: н.г. | H5: к.г. | I5: н.г. | J5: к.г. | K5: н.г. | L5: к.г. | M5: н.г. | N5: к.г. | O5: н.г. | P5: к.г. | Q5: н.г. | R5: к.г. | S5: н.г. | T5: к.г. | U5: н.г. | V5: к.г. | W5: н.г. | X5: к.г. | Y5: н.г. | Z5: к.г. | AA5: н.г. | AB5: к.г. | AC5: н.г. | AD5: к.г. | AE5: н.г. | AF5: к.г.
A6: 1 | B6: Иванов | AE6: =(C6+E6+G6+I6+K6+M6+O6+Q6+S6+U6+W6+Y6+AA6+AC6)/14 -> 0.00 | AF6: =(D6+F6+H6+J6+L6+N6+P6+R6+T6+V6+X6+Z6+AB6+AD6)/14 -> 0.00
A7: 2 | B7: Петров | AE7: =(C7+E7+G7+I7+K7+M7+O7+Q7+S7+U7+W7+Y7+AA7+AC7)/14 -> 0.00 | AF7: =(D7+F7+H7+J7+L7+N7+P7+R7+T7+V7+X7+Z7+AB7+AD7)/14 -> 0.00
A8: 3 | B8: Сидоров | AE8: 0.00 | AF8: 0.00
A9: 4 | AE9: 0.00 | AF9: 0.00
A10: 5 | AE10: 0.00 | AF10: 0.00
A11: 6 | AE11: 0.00 | AF11: 0.00
A12: 7 | AE12: 0.00 | AF12: 0.00
A13: 8 | AE13: 0.00 | AF13: 0.00
A14: 9 | AE14: 0.00 | AF14: 0.00
A15: 10 | AE15: 0.00 | AF15: 0.00
A16: 11 | AE16: 0.00 | AF16: 0.00
A17: 12 | AE17: 0.00 | AF17: 0.00
A18: 13 | AE18: 0.00 | AF18: 0.00
A19: 14 | AE19: 0.00 | AF19: 0.00
A20: 15 | AE20: 0.00 | AF20: 0.00
A21: 16 | AE21: 0.00 | AF21: 0.00
A22: 17 | AE22: 0.00 | AF22: 0.00
A23: 18 | AE23: 0.00 | AF23: 0.00
A24: 19 | AE24: 0.00 | AF24: 0.00
A25: 20 | AE25: 0.00 | AF25: 0.00
A26: 21 | AE26: 0.00 | AF26: 0.00
A27: 22 | AE27: 0.00 | AF27: 0.00
A28: 23 | AE28: 0.00 | AF28: 0.00
A29: 24 | AE29: 0.00 | AF29: 0.00
B30: среднее значение: | C30: =(C6+C7+C8+C9+C10+C11+C12+C13+C14+C15+C16+C17+C18+C19+C20+C21+C22+C23+C24+C25+C26+C27+C28+C29)/COUNTA($B$6:$B$29) -> 0.00 | D30: =(D6+D7+D8+D9+D10+D11+D12+D13+D14+D15+D16+D17+D18+D19+D20+D21+D22+D23+D24+D25+D26+D27+D28+D29)/COUNTA($B$6:$B$29) -> 0.00 | E30: 0.00 | F30: 0.00 | G30: 0.00 | H30: 0.00 | I30: 0.00 | J30: 0.00 | K30: 0.00 | L30: 0.00 | M30: 0.00 | N30: 0.00 | O30: 0.00 | P30: 0.00 | Q30: 0.00 | R30: 0.00 | S30: 0.00 | T30: 0.00 | U30: 0.00 | V30: 0.00 | W30: 0.00 | X30: 0.00 | Y30: 0.00 | Z30: 0.00 | AA30: 0.00 | AB30: 0.00 | AC30: 0.00 | AD30: 0.00 | AE30: 0.00 | AF30: 0.00
B33: начало года
C34: всего | D34: норма | E34: ниже нормы | F34: низкий
B35: количество детей | C35: =COUNTA(B6:B29) -> 3 | D35: =COUNTIF(AE6:AE29,">=3,8") -> 0 | E35: =COUNTIFS(AE6:AE29,"<3,7",AE6:AE29,">=2,3") -> 0 | F35: =COUNTIFS(AE6:AE29,"<2,2",AE6:AE29,">0") -> 0
B36: % | C36: 100 | D36: =D35*C36/C35 -> 0.00 | E36: =E35*C36/C35 -> 0.00 | F36: =F35*C36/C35 -> 0.00
B39: конец года
C40: всего | D40: норма | E40: ниже нормы | F40: низкий
B41: количество детей | C41: =COUNTA(B12:B35) -> 3 | D41: =COUNTIF(AF6:AF29,">=3,8") -> 0 | E41: =COUNTIFS(AF6:AF29,"<3,7",AF6:AF29,">=2,3") -> 0 | F41: =COUNTIFS(AF6:AF29,"<2,2",AF6:AF29,">0") -> 0
B42: % | C42: 100 | D42: =D41*C42/C41 -> 0.00 | E42: =E41*C42/C41 -> 0.00 | F42: =F41*C42/C41 -> 0.00

Sheet ХЭ-4
B1: НАПРАВЛЕНИЕ 4. МУЗЫКАЛЬНАЯ ДЕЯТЕЛЬНОСТЬ | AE1: ОГЛАВЛЕНИЕ
B3: №п/п | C3: ФИ ребенка | D3: Слушание | J3: Пение | P3: Песенное творчество | T3: Музыкально-ритмические движения | Z3: Музыкально-игровое и танцевальное творчество | AD3: Игра на ДМИ | AF3: Называет некоторых композиторов | AH3: среднее значение
D4: Правильно называет жанр музыкальною произведения (песня, танец, марш ) | F4: Узнает мелодию по отдельным фрагментам произведений | H4: Различает звучание музыкальных инструментов (фортепиано, скрипка, виолончель, балалайка) | J4: Умеет петь легким звуком в диапазоне от "ре" первой октавы до "до" второй октавы, брать дыхание перед началом песни, между музфкальными фразами | L4: Своевременно начинаети заканчивает песню | N4: Сольное пение с музыкальным сопровождением и без него | P4: Умеет импровизировать мелодию на заданный текст | R4: Сочиняет мелодии различного характера | T4: Свободно ориентируется в пространстве, выполняет простейшие перестроения, самостоятельно меняет темп в соответствии с музыкальными фразами | V4: Выполняет танцевальные движения под музыку: кружение, «ковырялочка», приставной шаг с приседанием, дробный шаг | X4: Умеет двигаться в парах, согласует свои движения с движениями партнера | Z4: Самостоятельно придумывает движения, отражающие звучание песни | AB4: Проявляет интерес к инсценированию содержания песен, хороводов | AD4: Умеет играть в оркестре на разных детских музыкальных ннструментах
D5: н.г. | E5: к.г. | F5: н.г. | G5: к.г. | H5: н.г. | I5: к.г. | J5: н.г. | K5: к.г. | L5: н.г. | M5: к.г. | N5: н.г. | O5: к.г. | P5: н.г. | Q5: к.г. | R5: н.г. | S5: к.г. | T5: н.г. | U5: к.г. | V5: н.г. | W5: к.г. | X5: н.г. | Y5: к.г. | Z5: н.г. | AA5: к.г. | AB5: н.г. | AC5: к.г. | AD5: н.г. | AE5: к.г. | AF5: н.г. | AG5: к.г. | AH5: н.г. | AI5: к.г.
B6: 1 | C6: Иванов | AH6: =(X6+Z6+AB6+AD6+AF6)/5 -> 0.00 | AI6: =(Y6+AA6+AC6+AE6+AG6)/5 -> 0.00
B7: 2 | C7: Петров | AH7: =(X7+Z7+AB7+AD7+AF7)/5 -> 0.00 | AI7: =(Y7+AA7+AC7+AE7+AG7)/5 -> 0.00
B8: 3 | C8: Сидоров | AH8: 0.00 | AI8: 0.00
B9: 4 | AH9: 0.00 | AI9: 0.00
B10: 5 | AH10: 0.00 | AI10: 0.00
B11: 6 | AH11: 0.00 | AI11: 0.00
B12: 7 | AH12: 0.00 | AI12: 0.00
B13: 8 | AH13: 0.00 | AI13: 0.00
B14: 9 | AH14: 0.00 | AI14: 0.00
B15: 10 | AH15: 0.00 | AI15: 0.00
B16: 11 | AH16: 0.00 | AI16: 0.00
B17: 12 | AH17: 0.00 | AI17: 0.00
B18: 13 | AH18: 0.00 | AI18: 0.00
B19: 14 | AH19: 0.00 | AI19: 0.00
B20: 15 | AH20: 0.00 | AI20: 0.00
B21: 16 | AH21: 0.00 | AI21: 0.00
B22: 17 | AH22: 0.00 | AI22: 0.00
B23: 18 | AH23: 0.00 | AI23: 0.00
B24: 19 | AH24: 0.00 | AI24: 0.00
B25: 20 | AH25: 0.00 | AI25: 0.00
B26: 21 | AH26: 0.00 | AI26: 0.00
B27: 22 | AH27: 0.00 | AI27: 0.00
B28: 23 | AH28: 0.00 | AI28: 0.00
B29: 24 | AH29: 0.00 | AI29: 0.00
C30: среднее значение: | D30: =(D6+D7+D8+D9+D10+D11+D12+D13+D14+D15+D16+D17+D18+D19+D20+D21+D22+D23+D24+D25+D26+D27+D28+D29)/COUNTA($C$6:$C$29) -> 0.00 | E30: =(E6+E7+E8+E9+E10+E11+E12+E13+E14+E15+E16+E17+E18+E19+E20+E21+E22+E23+E24+E25+E26+E27+E28+E29)/COUNTA($C$6:$C$29) -> 0.00 | F30: 0.00 | G30: 0.00 | H30: 0.00 | I30: 0.00 | J30: 0.00 | K30: 0.00 | L30: 0.00 | M30: 0.00 | N30: 0.00 | O30: 0.00 | P30: 0.00 | Q30: 0.00 | R30: 0.00 | S30: 0.00 | T30: 0.00 | U30: 0.00 | V30: 0.00 | W30: 0.00 | X30: 0.00 | Y30: 0.00 | Z30: 0.00 | AA30: 0.00 | AB30: 0.00 | AC30: 0.00 | AD30: 0.00 | AE30: 0.00 | AF30: 0.00 | AG30: 0.00 | AH30: 0.00 | AI30: 0.00
C33: начало года
D34: всего | E34: норма | F34: ниже нормы | G34: низкий
C35: количество детей | D35: =COUNTA(C6:C29) -> 3 | E35: =COUNTIF(AH6:AH29,">=3,8") -> 0 | F35: =COUNTIFS(AH6:AH29,"<3,7",AH6:AH29,">=2,3") -> 0 | G35: =COUNTIFS(AH6:AH29,"<2,2",AH6:AH29,">0") -> 0
C36: % | D36: 100 | E36: =E35*D36/D35 -> 0.00 | F36: =F35*D36/D35 -> 0.00 | G36: =G35*D36/D35 -> 0.00
C39: конец года
D40: всего | E40: норма | F40: ниже нормы | G40: низкий
C41: количество детей | D41: =COUNTA(C12:C35) -> 3 | E41: =COUNTIF(AI6:AI29,">=3,8") -> 0 | F41: =COUNTIFS(AI6:AI29,"<3,7",AI6:AI29,">=2,3") -> 0 | G41: =COUNTIFS(AI6:AI29,"<2,2",AI6:AI29,">0") -> 0
C42: % | D42: 100 | E42: =E41*D42/D41 -> 0.00 | F42: =F41*D42/D41 -> 0.00 | G42: =G41*D42/D41 -> 0.00

Sheet ХЭ-5
A1: НАПРАВЛЕНИЕ 5. ТЕАТРАЛИЗОВАННАЯ И КУЛЬТУРНО-ДОСУГОВАЯ ДЕЯТЕЛЬНОСТЬ | P1: ОГЛАВЛЕНИЕ
A3: №п/п | B3: ФИ ребенка | C3: Театрализованная деятельность | I3: среднее значение | K3: Культурно-досуговая деятельность | Q3: среднее значение
C4: Умеет передавать образы различными способами (речь, мимика, жест, пантомима) | E4: Проявляет инициативу в изготовлении декораций элементов костюма и атрибутов | G4: Знает некоторые виды театрального искусства (кукольный театр, балет, опера) | K4: Проводит свободное время за чтением книг, рисованием, пением и т.д. | M4: Бережно относится к народным праздничным традициям и обычаям | O4: С желанием участвует в народных праздниках и развлечениях
C5: н.г. | D5: к.г. | E5: н.г. | F5: к.г. | G5: н.г. | H5: к.г. | I5: н.г. | J5: к.г. | K5: н.г. | L5: к.г. | M5: н.г. | N5: к.г. | O5: н.г. | P5: к.г. | Q5: н.г. | R5: к.г.
A6: 1 | B6: Иванов | I6: =(C6+E6+G6)/3 -> 0.00 | J6: =(D6+F6+H6)/3 -> 0.00 | Q6: =(K6+M6+O6)/3 -> 0.00 | R6: =(L6+N6+P6)/3 -> 0.00
A7: 2 | B7: Петров | I7: =(C7+E7+G7)/3 -> 0.00 | J7: =(D7+F7+H7)/3 -> 0.00 | Q7: =(K7+M7+O7)/3 -> 0.00 | R7: =(L7+N7+P7)/3 -> 0.00
A8: 3 | B8: Сидоров | I8: 0.00 | J8: 0.00 | Q8: 0.00 | R8: 0.00
A9: 4 | I9: 0.00 | J9: 0.00 | Q9: 0.00 | R9: 0.00
A10: 5 | I10: 0.00 | J10: 0.00 | Q10: 0.00 | R10: 0.00
A11: 6 | I11: 0.00 | J11: 0.00 | Q11: 0.00 | R11: 0.00
A12: 7 | I12: 0.00 | J12: 0.00 | Q12: 0.00 | R12: 0.00
A13: 8 | I13: 0.00 | J13: 0.00 | Q13: 0.00 | R13: 0.00
A14: 9 | I14: 0.00 | J14: 0.00 | Q14: 0.00 | R14: 0.00
A15: 10 | I15: 0.00 | J15: 0.00 | Q15: 0.00 | R15: 0.00
A16: 11 | I16: 0.00 | J16: 0.00 | Q16: 0.00 | R16: 0.00
A17: 12 | I17: 0.00 | J17: 0.00 | Q17: 0.00 | R17: 0.00
A18: 13 | I18: 0.00 | J18: 0.00 | Q18: 0.00 | R18: 0.00
A19: 14 | I19: 0.00 | J19: 0.00 | Q19: 0.00 | R19: 0.00
A20: 15 | I20: 0.00 | J20: 0.00 | Q20: 0.00 | R20: 0.00
A21: 16 | I21: 0.00 | J21: 0.00 | Q21: 0.00 | R21: 0.00
A22: 17 | I22: 0.00 | J22: 0.00 | Q22: 0.00 | R22: 0.00
A23: 18 | I23: 0.00 | J23: 0.00 | Q23: 0.00 | R23: 0.00
A24: 19 | I24: 0.00 | J24: 0.00 | Q24: 0.00 | R24: 0.00
A25: 20 | I25: 0.00 | J25: 0.00 | Q25: 0.00 | R25: 0.00
A26: 21 | I26: 0.00 | J26: 0.00 | Q26: 0.00 | R26: 0.00
A27: 22 | I27: 0.00 | J27: 0.00 | Q27: 0.00 | R27: 0.00
A28: 23 | I28: 0.00 | J28: 0.00 | Q28: 0.00 | R28: 0.00
A29: 24 | I29: 0.00 | J29: 0.00 | Q29: 0.00 | R29: 0.00
B30: среднее значение: | C30: =(C6+C7+C8+C9+C10+C11+C12+C13+C14+C15+C16+C17+C18+C19+C20+C21+C22+C23+C24+C25+C26+C27+C28+C29)/COUNTA($B$6:$B$29) -> 0.00 | D30: =(D6+D7+D8+D9+D10+D11+D12+D13+D14+D15+D16+D17+D18+D19+D20+D21+D22+D23+D24+D25+D26+D27+D28+D29)/COUNTA($B$6:$B$29) -> 0.00 | E30: 0.00 | F30: 0.00 | G30: 0.00 | H30: 0.00 | I30: 0.00 | J30: 0.00 | K30: =(K6+K7+K8+K9+K10+K11+K12+K13+K14+K15+K16+K17+K18+K19+K20+K21+K22+K23+K24+K25+K26+K27+K28+K29)/COUNTA($B$6:$B$29) -> 0.00 | L30: =(L6+L7+L8+L9+L10+L11+L12+L13+L14+L15+L16+L17+L18+L19+L20+L21+L22+L23+L24+L25+L26+L27+L28+L29)/COUNTA($B$6:$B$29) -> 0.00 | M30: 0.00 | N30: 0.00 | O30: 0.00 | P30: 0.00 | Q30: 0.00 | R30: 0.00
B33: начало года | I33: начало года
A34: ТЕАТРАЛИЗОВАННАЯ ДЕЯТЕЛЬНОСТЬ | C34: всего | D34: норма | E34: ниже нормы | F34: низкий | H34: КУЛЬТУРНО-ДОСУГОВАЯ ДЕЯТЕЛЬНОСТЬ | L34: всего | M34: норма | N34: ниже нормы | O34: низкий
B35: количество детей | C35: =COUNTA(B6:B29) -> 3 | D35: =COUNTIF(I6:I29,">=3,8") -> 0 | E35: =COUNTIFS(I6:I29,"<3,7",I6:I29,">=2,3") -> 0 | F35: =COUNTIFS(I6:I29,"<2,2",I6:I29,">0") -> 0 | I35: количество детей | L35: =COUNTA(B6:B29) -> 3 | M35: =COUNTIF(Q6:Q29,">=3,8") -> 0 | N35: =COUNTIFS(Q6:Q29,"<3,7",Q6:Q29,">=2,3") -> 0 | O35: =COUNTIFS(Q6:Q29,"<2,2",Q6:Q29,">0") -> 0
B36: % | C36: 100 | D36: =D35*C36/C35 -> 0.00 | E36: =E35*C36/C35 -> 0.00 | F36: =F35*C36/C35 -> 0.00 | I36: % | L36: 100 | M36: =M35*L36/L35 -> 0.00 | N36: =N35*L36/L35 -> 0.00 | O36: =O35*L36/L35 -> 0.00
B39: конец года | I39: конец года
C40: всего | D40: норма | E40: ниже нормы | F40: низкий | L40: всего | M40: норма | N40: ниже нормы | O40: низкий
B41: количество детей | C41: =COUNTA(B12:B35) -> 3 | D41: =COUNTIF(J6:J29,">=3,8") -> 0 | E41: =COUNTIFS(J6:J29,"<3,7",J6:J29,">=2,3") -> 0 | F41: =COUNTIFS(J6:J29,"<2,2",J6:J29,">0") -> 0 | I41: количество детей | L41: =COUNTA(B6:B29) -> 3 | M41: =COUNTIF(R6:R29,">=3,8") -> 0 | N41: =COUNTIFS(R6:R29,"<3,7",R6:R29,">=2,3") -> 0 | O41: =COUNTIFS(R6:R29,"<2,2",R6:R29,">0") -> 0
B42: % | C42: 100 | D42: =D41*C42/C41 -> 0.00 | E42: =E41*C42/C41 -> 0.00 | F42: =F41*C42/C41 -> 0.00 | I42: % | L42: 100 | M42: =M41*L42/L41 -> 0.00 | N42: =N41*L42/L41 -> 0.00 | O42: =O41*L42/L41 -> 0.00

Sheet ИТОГ ХЭ
A1: Обобщение результатов педагогической диагностики по направлениям
C2: ОО «Художественно-эстетическое развитие» | H2: ОГЛАВЛЕНИЕ
B4: Приобщение к искусству | C4: Конструктивная деятельность | D4: Изобразительная деятельность | E4: Музыкальная деятельность | F4: Театрализованная деятельность | G4: Культурно-досуговая деятельность | H4: Средний балл/уровень
B5: 1 | C5: 2 | D5: 3 | E5: 4 | F5: 5 | G5: 6 | H5: 7
A6: начало | B6: ='ХЭ-1'!Q32 -> 0.00 | C6: ='ХЭ-2'!N30 -> 0.00 | D6: ='ХЭ-3'!AE30 -> 0.00 | E6: ='ХЭ-4'!AH30 -> 0.00 | F6: ='ХЭ-5'!$I$30 -> 0.00 | G6: ='ХЭ-5'!$Q$30 -> 0.00 | H6: =(B6+C6+D6+E6+F6)/6 -> 0.00
A7: конец | B7: ='ХЭ-1'!R32 -> 0.00 | C7: ='ХЭ-2'!O30 -> 0.00 | D7: ='ХЭ-3'!AF30 -> 0.00 | E7: ='ХЭ-4'!AI30 -> 0.00 | F7: ='ХЭ-5'!$J$30 -> 0.00 | G7: ='ХЭ-5'!$R$30 -> 0.00 | H7: =(B7+C7+D7+E7+F7)/6 -> 0.00
A28: ВЫВОДЫ:
A29: Начало учебного года:
A37: Конец учебного года:

Sheet ФР-1
A1: Образовательная область «Физическое развитие»
AK2: ОГЛАВЛЕНИЕ
A3: НАПРАВЛЕНИЕ I. ОСНОВНАЯ ГИМНАСТИКА. ПОДВИЖНЫЕ И СПОРТИВНЫЕ ИГРЫ. СПОРТИВНЫЕ УПРАЖНЕНИЯ
A5: №п/п | B5: ФИ ребенка | C5: Умеет ходить на носках, на пятках, на наружных стропах стоп, с высоким подниманием колена, в полуприседе, перекатом с пятки на носок, мелким и широким шагом, приставным шагом влево и вправо | E5: Умеет ходить в колонне но одному, по двое, но трое | G5: Умеет бегать на носках, с высоким подниманием колена, в колонне но одному, но двое, «змейкой», врассыпную, с преодолением препятствий | I5: Умеет ползать на четвереньках с опорой на колени и ладони, на животе но гимнастической скамейке | K5: Прыгает на двух ногах на месте. с продвижением вперед, перепрыгивает через препятствие | M5: Прыгает разными способами: ноги скрестно и врозь, одна нога вперед — другая назад | O5: Умеет прыгать в длину с места и с разбега | Q5: Умеет прыгать в высотус разбега | S5: Умеет прыгат ь через короткую и длинную скакалку’ на двух ногах | U5: Умеет проказ ывазь обручи, мячи в заданном направлении | W5: Умеет подбрасывать мяч вверх и ловить его двумя руками и с хлопками,бросать мяч о землю и ловить двумя руками | Y5: Умеет отбивать мяч на месте более 10 раз | AA5: Умеет метать предметы в горизонтальную и вертикальную цели | AC5: Правильно участвует в различных построениях: колоннах, шеренгах, кругах | AE5: Умеет выполнять упражнения без предметов, с предметами, соблюдает исходное положение | AG5: Умеет играть в спортивные игры (элементы): городки, и баскетбол, футбол, хоккей | AI5: Включается в подвижные игры, соблюдает правила | AK5: Участвует в играх-эстафетах. Соблюдает правила передвижения | AM5: среднее значение
C7: н.г. | D7: к.г. | E7: н.г. | F7: к.г. | G7: н.г. | H7: к.г. | I7: н.г. | J7: к.г. | K7: н.г. | L7: к.г. | M7: н.г. | N7: к.г. | O7: н.г. | P7: к.г. | Q7: н.г. | R7: к.г. | S7: н.г. | T7: к.г. | U7: н.г. | V7: к.г. | W7: н.г. | X7: к.г. | Y7: н.г. | Z7: к.г. | AA7: г. | AB7: к.г. | AC7: н.г. | AD7: к.г. | AE7: н.г. | AF7: к.г. | AG7: н.г. | AH7: к.г. | AI7: н.г. | AJ7: к.г. | AK7: н.г. | AL7: к.г. | AM7: н.г. | AN7: к.г.
A8: 1 | B8: Иванов | AM8: =(C8+E8+G8+I8+K8+M8+O8+Q8+S8+U8+W8+Y8+AA8+AC8+AE8+AG8+AI8+AK8)/18 -> 0.0 | AN8: =(D8+F8+H8+J8+L8+N8+P8+R8+T8+V8+X8+Z8+AB8+AD8+AF8+AH8+AJ8+AL8)/18 -> 0.0
A9: 2 | B9: Петров | AM9: =(C9+E9+G9+I9+K9+M9+O9+Q9+S9+U9+W9+Y9+AA9+AC9+AE9+AG9+AI9+AK9)/18 -> 0.0 | AN9: 0.0
A10: 3 | B10: Сидоров | AM10: 0.0 | AN10: 0.0
A11: 4 | AM11: 0.0 | AN11: 0.0
A12: 5 | AM12: 0.0 | AN12: 0.0
A13: 6 | AM13: 0.0 | AN13: 0.0
A14: 7 | AM14: 0.0 | AN14: 0.0
A15: 8 | AM15: 0.0 | AN15: 0.0
A16: 9 | AM16: 0.0 | AN16: 0.0
A17: 10 | AM17: 0.0 | AN17: 0.0
A18: 11 | AM18: 0.0 | AN18: 0.0
A19: 12 | AM19: 0.0 | AN19: 0.0
A20: 13 | AM20: 0.0 | AN20: 0.0
A21: 14 | AM21: 0.0 | AN21: 0.0
A22: 15 | AM22: 0.0 | AN22: 0.0
A23: 16 | AM23: 0.0 | AN23: 0.0
A24: 17 | AM24: 0.0 | AN24: 0.0
A25: 18 | AM25: 0.0 | AN25: 0.0
A26: 19 | AM26: 0.0 | AN26: 0.0
A27: 20 | AM27: 0.0 | AN27: 0.0
A28: 21 | AM28: 0.0 | AN28: 0.0
A29: 22 | AM29: 0.0 | AN29: 0.0
A30: 23 | AM30: 0.0 | AN30: 0.0
A31: 24 | AM31: 0.0 | AN31: 0.0
B32: среднее значение: | C32: =(C8+C9+C10+C11+C12+C13+C14+C15+C16+C17+C18+C19+C20+C21+C22+C23+C24+C25+C26+C27+C28+C29+C30+C31)/COUNTA($B$8:$B$31) -> 0.0 | D32: =(D8+D9+D10+D11+D12+D13+D14+D15+D16+D17+D18+D19+D20+D21+D22+D23+D24+D25+D26+D27+D28+D29+D30+D31)/COUNTA($B$8:$B$31) -> 0.0 | E32: 0.0 | F32: 0.0 | G32: 0.0 | H32: 0.0 | I32: 0.0 | J32: 0.0 | K32: 0.0 | L32: 0.0 | M32: 0.0 | N32: 0.0 | O32: 0.0 | P32: 0.0 | Q32: 0.0 | R32: 0.0 | S32: 0.0 | T32: 0.0 | U32: 0.0 | V32: 0.0 | W32: 0.0 | X32: 0.0 | Y32: 0.0 | Z32: 0.0 | AA32: 0.0 | AB32: 0.0 | AC32: 0.0 | AD32: 0.0 | AE32: 0.0 | AF32: 0.0 | AG32: 0.0 | AH32: 0.0 | AI32: 0.0 | AJ32: 0.0 | AK32: 0.0 | AL32: 0.0 | AM32: 0.0 | AN32: 0.0
B36: начало года
C37: всего | D37: норма | E37: ниже нормы | F37: низкий
B38: количество детей | C38: =COUNTA(B8:B31) -> 3 | D38: =COUNTIF(AM8:AM31,">=3,8") -> 0 | E38: =COUNTIFS(AM8:AM31,"<3,7",AM8:AM31,">=2,3") -> 0 | F38: =COUNTIFS(AM8:AM31,"<2,2",AM8:AM31,">0") -> 0
B39: % | C39: 100 | D39: =D38*C39/C38 -> 0 | E39: =E38*C39/C38 -> 0.0 | F39: =F38*C39/C38 -> 0.0
B42: конец года
C43: всего | D43: норма | E43: ниже нормы | F43: низкий
B44: количество детей | C44: =COUNTA(B8:B31) -> 3 | D44: =COUNTIF(AN8:AN31,">=3,8") -> 0 | E44: =COUNTIFS(AN8:AN31,"<3,7",AN8:AN31,">=2,3") -> 0 | F44: =COUNTIFS(AN8:AN31,"<2,2",AN8:AN31,">0") -> 0
B45: % | C45: 100 | D45: =D44*C45/C44 -> 0.0 | E45: =E44*C45/C44 -> 0.0 | F45: =F44*C45/C44 -> 0.0

Sheet ФР-2
A1: НАПРАВЛЕНИЕ 2. ФОРМИРОВАНИЕ ОСНОВ ЗДОРОВОГО ОБРАЗА ЖИЗНИ. АКТИВНЫЙ ОТДЫХ | R1: ОГЛАВЛЕНИЕ
A3: №п/п | B3: ФИ ребенка | C3: Навыки самообслуживания сформированы (умеет следить за состоянием одежды, приче­ски, чистотой рук и ногтей) | E3: Знает некоторые полезные и неполезные для здоровья продукты | G3: Знает назначение частей тела и некоторых органов, может рассказать об этом | I3: Воспроизводит некоторые пальчиковые игры на одной и двух руках | K3: Умеет самостоятельно застегивать и paccтегивагь пуговицы, завязывать и развязывать шнурки, аккуратно склады­вать одежду | M3: Умеет удерживать двумя пальцами мелкие предметы, переносить и класть, в маленькую емкость | O3: Сформировано представление о туризме как виде активного отдыха и способе ознакомления с природой и культурой родного края | Q3: Соблюдает правила гигиены и безопасного поведения,осторожность в преодолении препятствий | S3: среднее значение
C5: н.г. | D5: к.г. | E5: н.г. | F5: к.г. | G5: н.г. | H5: к.г. | I5: н.г. | J5: к.г. | K5: н.г. | L5: к.г. | M5: н.г. | N5: к.г. | O5: н.г. | P5: к.г. | Q5: н.г. | R5: к.г. | S5: н.г. | T5: к.г.
A6: 1 | B6: Иванов | S6: =(C6+E6+G6+I6+K6+M6+O6+Q6)/8 -> 0.0 | T6: =(D6+F6+H6+J6+L6+N6+P6+R6)/8 -> 0.0
A7: 2 | B7: Петров | S7: =(C7+E7+G7+I7+K7+M7+O7+Q7)/8 -> 0.0 | T7: 0.0
A8: 3 | B8: Сидоров | S8: 0.0 | T8: 0.0
A9: 4 | S9: 0.0 | T9: 0.0
A10: 5 | S10: 0.0 | T10: 0.0
A11: 6 | S11: 0.0 | T11: 0.0
A12: 7 | S12: 0.0 | T12: 0.0
A13: 8 | S13: 0.0 | T13: 0.0
A14: 9 | S14: 0.0 | T14: 0.0
A15: 10 | S15: 0.0 | T15: 0.0
A16: 11 | S16: 0.0 | T16: 0.0
A17: 12 | S17: 0.0 | T17: 0.0
A18: 13 | S18: 0.0 | T18: 0.0
A19: 14 | S19: 0.0 | T19: 0.0
A20: 15 | S20: 0.0 | T20: 0.0
A21: 16 | S21: 0.0 | T21: 0.0
A22: 17 | S22: 0.0 | T22: 0.0
A23: 18 | S23: 0.0 | T23: 0.0
A24: 19 | S24: 0.0 | T24: 0.0
A25: 20 | S25: 0.0 | T25: 0.0
A26: 21 | S26: 0.0 | T26: 0.0
A27: 22 | S27: 0.0 | T27: 0.0
A28: 23 | S28: 0.0 | T28: 0.0
A29: 24 | S29: 0.0 | T29: 0.0
B30: среднее значение: | C30: =(C6+C7+C8+C9+C10+C11+C12+C13+C14+C15+C16+C17+C18+C19+C20+C21+C22+C23+C24+C25+C26+C27+C28+C29)/COUNTA($B$6:$B$29) -> 0.0 | D30: =(D6+D7+D8+D9+D10+D11+D12+D13+D14+D15+D16+D17+D18+D19+D20+D21+D22+D23+D24+D25+D26+D27+D28+D29)/COUNTA($B$6:$B$29) -> 0.0 | E30: 0.0 | F30: 0.0 | G30: 0.0 | H30: 0.0 | I30: 0.0 | J30: 0.0 | K30: 0.0 | L30: 0.0 | M30: 0.0 | N30: 0.0 | O30: 0.0 | P30: 0.0 | Q30: 0.0 | R30: 0.0 | S30: 0.0 | T30: 0.0
B33: начало года
C34: всего | D34: норма | E34: ниже нормы | F34: низкий
B35: количество детей | C35: =COUNTA(B6:B29) -> 3 | D35: =COUNTIF(S6:S29,">=3,8") -> 0 | E35: =COUNTIFS(S6:S29,"<3,7",S6:S29,">=2,3") -> 0 | F35: =COUNTIFS(S6:S29,"<2,2",S6:S29,">0") -> 0
B36: % | C36: 100 | D36: =D35*C36/C35 -> 0 | E36: =E35*C36/C35 -> 0.0 | F36: =F35*C36/C35 -> 0.0
B39: конец года
C40: всего | D40: норма | E40: ниже нормы | F40: низкий
B41: количество детей | C41: =COUNTA(B5:B28) -> 3 | D41: =COUNTIF(T6:T29,">=3,8") -> 0 | E41: =COUNTIFS(T6:T29,"<3,7",T6:T29,">=2,3") -> 0 | F41: =COUNTIFS(T6:T29,"<2,2",T6:T29,">0") -> 0
B42: % | C42: 100 | D42: =D41*C42/C41 -> 0.0 | E42: =E41*C42/C41 -> 0.0 | F42: =F41*C42/C41 -> 0.0

Sheet ИТОГ ФР
B1: Обобщение результатов педагогической диагностики по направлениям ОО «Физическое развитие»
A2: ОГЛАВЛЕНИЕ
C4: Основная гимнастика. Подвижные и спортивные игры. Спортивные упражнения. | D4: Формирование основ здорового образа жизни. Активный отдых. | E4: Средний балл/уровень
C5: 1 | D5: 2 | E5: 3
B6: начало | C6: ='ФР-1'!$AM$32 -> 0.00 | D6: ='ФР-2'!S30 -> 0.00 | E6: =(C6+D6)/2 -> 0.00
B7: конец | C7: ='ФР-1'!$AN$32 -> 0.00 | D7: ='ФР-2'!T30 -> 0.00 | E7: =(C7+D7)/2 -> 0.00
A28: ВЫВОДЫ:
A29: Начало учебного года:
A37: Конец учебного года:

Sheet ОБЩИЙ ИТОГ
A1: Обобщение результатов педагогической диагностики по всем образовательным областям
A2: на 202__/2_____ учебный год
A3: ОГЛАВЛЕНИЕ
B5: Социально­коммуникативное развитие | C5: Познавательное развитие | D5: Речевое развитие | E5: Художественно­эстетическое развитие | F5: Физическое развитие | G5: Средний балл/уровепь
B6: СК | C6: ПР | D6: РР | E6: ХЭ | F6: ФР | G6: ср.ур.
A7: начало | B7: ='ИТОГ СК'!F7 -> 1.19 | C7: ='ИТОГ ПР'!E7 -> 1.81 | D7: ='ИТОГ РР'!G6 -> 0.37 | E7: ='ИТОГ ХЭ'!H6 -> 0.00 | F7: ='ИТОГ ФР'!E6 -> 0.00 | G7: =(B7+C7+D7+E7+F7)/5 -> 0.67
A8: конец | B8: ='ИТОГ СК'!F8 -> 1.65 | C8: ='ИТОГ ПР'!E8 -> 2.41 | D8: ='ИТОГ РР'!G7 -> 0.51 | E8: ='ИТОГ ХЭ'!H7 -> 0.00 | F8: ='ИТОГ ФР'!E7 -> 0.00 | G8: =(B8+C8+D8+E8+F8)/5 -> 0.91
A29: Основные выводы по результатам педагогической диагностики
A31: Педагогический процесс организован на _________ уровне.
A32: Следует обратить внимание на трудности реализации образовательной(-ых) области(-ей) «_________ развитие» в следующих аспектах:
A33: 1.
A34: 2.
A35: 3.
A37: В индивидуальной помощи нуждаются следующие дети:
A38: 1. «Речевое развитие»:
A44: 2. «Познавательное развитие»:
A50: 3. «Социально-коммуникативное развитие»:
A56: 4. «Художественно-эстетическое развитие»:
A62: 5. «Физическое развитие»:
